Workbook

Sheet 1-5 Mai
A1: MARTIN DESGAGNÉ
A5: CHANTIER NUMERO | F5: PAVILLON BONENFANT | H5: HOPITAL LAVAL | J5: FONTAINE BLEAU | L5: MARLY CHATEL 3 | N5: LE ST-LAURENT | P5: ODÉON | R5: HOTEL CLASSIQUE | T5: 736 PÈRE MARQUETTE | V5: LOUIS HÉMON | X5: ILOT ST-PATRICK | Z5: PLACE VERSAILLES | AF5: ADM | AH5: AUTRES | AJ5: TOTAL
F7: 16-5248 | H7: 16-5307 | J7: 16-5321 | L7: 17-5331 | N7: 17-5375 | P7: 17-5386 | R7: 17-5395 | T7: 17-5400 | V7: 17-5401 | X7: 17-5404 | Z7: 16-5229
A10: LUNDI | C10: 2017-05-01 | AJ10: =SUM(D10:AI10) -> 0
A12: MARDI | C12: 2017-05-02 | AJ12: =SUM(D12:AI12) -> 0
A14: MERCREDI | C14: 2017-05-03 | AJ14: =SUM(D14:AI14) -> 0
A16: JEUDI | C16: 2017-05-04 | H16: 1 | L16: 1.5 | P16: 2 | T16: 1 | V16: 1 | AF16: 1.5 | AJ16: =SUM(D16:AI16) -> 8
A18: VENDREDI | C18: 2017-05-05 | L18: 1.5 | N18: 1 | P18: 1.5 | R18: 1 | X18: 2 | Z18: 1 | AJ18: =SUM(D18:AI18) -> 8
A20: SAMEDI
D22: =D5 -> 0 | F22: =F5 -> PAVILLON BONENFANT | H22: =H5 -> HOPITAL LAVAL | J22: =J5 -> FONTAINE BLEAU | L22: =L5 -> MARLY CHATEL 3 | N22: =N5 -> LE ST-LAURENT | P22: =P5 -> ODÉON | R22: =R5 -> HOTEL CLASSIQUE | T22: =T5 -> 736 PÈRE MARQUETTE | V22: =V5 -> LOUIS HÉMON | X22: =X5 -> ILOT ST-PATRICK | Z22: =Z5 -> PLACE VERSAILLES | AB22: =AB5 -> 0 | AD22: =AD5 -> 0 | AF22: =AF5 -> ADM | AH22: =AH5 -> AUTRES | AJ22: =SUM(AJ10,AJ12,AJ14,AJ16,AJ18,AJ20) -> 16
D23: =D7 -> 0 | F23: =F7 -> 16-5248 | H23: =H7 -> 16-5307 | J23: =J7 -> 16-5321 | L23: =L7 -> 17-5331 | N23: =N7 -> 17-5375 | P23: =P7 -> 17-5386 | R23: =R7 -> 17-5395 | T23: =T7 -> 17-5400 | V23: =V7 -> 17-5401 | X23: =X7 -> 17-5404 | Z23: =Z7 -> 16-5229 | AB23: =AB7 -> 0 | AD23: =AD7 -> 0 | AF23: =AF7 -> 0 | AH23: =AH7 -> 0
D24: =SUM(D10:E21) -> 0 | F24: =SUM(F10:G21) -> 0 | H24: =SUM(H10:I21) -> 1 | J24: =SUM(J10:K21) -> 0 | L24: =SUM(L10:M21) -> 3 | N24: =SUM(N10:O21) -> 1 | P24: =SUM(P10:Q21) -> 3.5 | R24: =SUM(R10:S21) -> 1 | T24: =SUM(T10:U21) -> 1 | V24: =SUM(V10:W21) -> 1 | X24: =SUM(X10:Y21) -> 2 | Z24: =SUM(Z10,Z12,Z14,Z16,Z18) -> 1 | AB24: =SUM(AB10,AB12,AB14,AB16,AB18,AB20) -> 0 | AD24: =SUM(AD10:AE21) -> 0 | AF24: =SUM(AF10:AG21) -> 1.5
A25: Martin Desgagné

Sheet 8-12 Mai
A5: CHANTIER NUMERO | F5: PAVILLON BONENFANT | H5: HOPITAL LAVAL | J5: FONTAINE BLEAU | L5: MARLY CHATEL 3 | N5: LE ST-LAURENT | P5: ODÉON | R5: HOTEL CLASSIQUE | T5: MAISON DES AINÉS | V5: 736 PÈRE MARQUETTE | X5: LOUIS HÉMON | Z5: ILOT ST-PATRICK | AB5: REPARATIONS GARANTIES | AF5: ADM | AH5: AUTRES | AJ5: TOTAL
F7: 16-5248 | H7: 16-5307 | J7: 16-5321 | L7: 17-5331 | N7: 17-5375 | P7: 17-5386 | R7: 17-5395 | T7: 17-5399 | V7: 17-5400 | X7: 17-5401 | Z7: 17-5404 | AB7: 17-5360
A10: LUNDI | C10: 2017-05-08 | F10: 1.5 | H10: 1 | L10: 1.5 | P10: 1 | X10: 1 | Z10: 2 | AJ10: =SUM(D10:AI10) -> 8
A12: MARDI | C12: 2017-05-09 | L12: 2 | P12: 1 | R12: 1 | X12: 0.5 | Z12: 1.5 | AF12: 2 | AJ12: =SUM(D12:AI12) -> 8
A14: MERCREDI | C14: 2017-05-10 | L14: 1 | P14: 1.5 | X14: 1 | Z14: 1.5 | AB14: 3 | AJ14: =SUM(D14:AI14) -> 8
A16: JEUDI | C16: 2017-05-11 | L16: 1 | P16: 1 | V16: 1 | X16: 1 | Z16: 2.5 | AB16: 1.5 | AJ16: =SUM(D16:AI16) -> 8
A18: VENDREDI | C18: 2017-05-12 | F18: 1 | H18: 1 | L18: 0.5 | R18: 1 | T18: 2 | X18: 0.5 | Z18: 2 | AJ18: =SUM(D18:AI18) -> 8
A20: SAMEDI
D22: =D5 -> 0 | F22: =F5 -> PAVILLON BONENFANT | H22: =H5 -> HOPITAL LAVAL | J22: =J5 -> FONTAINE BLEAU | L22: =L5 -> MARLY CHATEL 3 | N22: =N5 -> LE ST-LAURENT | P22: =P5 -> ODÉON | R22: =R5 -> HOTEL CLASSIQUE | T22: =T5 -> MAISON DES AINÉS | V22: =V5 -> 736 PÈRE MARQUETTE | X22: =X5 -> LOUIS HÉMON | Z22: =Z5 -> ILOT ST-PATRICK | AB22: =AB5 -> REPARATIONS GARANTIES | AD22: =AD5 -> 0 | AF22: =AF5 -> ADM | AH22: =AH5 -> AUTRES | AJ22: =SUM(AJ10,AJ12,AJ14,AJ16,AJ18,AJ20) -> 40
D23: =D7 -> 0 | F23: =F7 -> 16-5248 | H23: =H7 -> 16-5307 | J23: =J7 -> 16-5321 | L23: =L7 -> 17-5331 | N23: =N7 -> 17-5375 | P23: =P7 -> 17-5386 | R23: =R7 -> 17-5395 | T23: =T7 -> 17-5399 | V23: =V7 -> 17-5400 | X23: =X7 -> 17-5401 | Z23: =Z7 -> 17-5404 | AB23: =AB7 -> 17-5360 | AD23: =AD7 -> 0 | AF23: =AF7 -> 0 | AH23: =AH7 -> 0
D24: =SUM(D10:E21) -> 0 | F24: =SUM(F10:G21) -> 2.5 | H24: =SUM(H10:I21) -> 2 | J24: =SUM(J10:K21) -> 0 | L24: =SUM(L10:M21) -> 6 | N24: =SUM(N10:O21) -> 0 | P24: =SUM(P10:Q21) -> 4.5 | R24: =SUM(R10:S21) -> 2 | T24: =SUM(T10:U21) -> 2 | V24: =SUM(V10:W21) -> 1 | X24: =SUM(X10:Y21) -> 4 | Z24: =SUM(Z10,Z12,Z14,Z16,Z18) -> 9.5 | AB24: =SUM(AB10,AB12,AB14,AB16,AB18,AB20) -> 4.5 | AD24: =SUM(AD10:AE21) -> 0 | AF24: =SUM(AF10:AG21) -> 2

Sheet 15-19 Mai
A5: CHANTIER NUMERO | F5: PAVILLON BONENFANT | H5: HOPITAL LAVAL | J5: FONTAINE BLEAU | L5: MARLY CHATEL 3 | N5: LE ST-LAURENT | P5: ODÉON | R5: HOTEL CLASSIQUE | T5: MAISON DES AINÉS | V5: 736 PÈRE MARQUETTE | X5: LOUIS HÉMON | Z5: ILOT ST-PATRICK | AB5: TERRASSES DU SÉMINAIRE | AD5: REP.GARANTIEBENOIT XV | AF5: ADM | AH5: AUTRES | AJ5: TOTAL
F7: 16-5248 | H7: 16-5307 | J7: 16-5321 | L7: 17-5331 | N7: 17-5375 | P7: 17-5386 | R7: 17-5395 | T7: 17-5399 | V7: 17-5400 | X7: 17-5401 | Z7: 17-5404 | AB7: 17-5392 | AD7: 17-5360
A10: LUNDI | C10: 2017-05-15 | L10: 1 | P10: 1 | R10: 1 | X10: 1 | Z10: 1 | AD10: 1 | AF10: 2 | AJ10: =SUM(D10:AI10) -> 8
A12: MARDI | C12: 2017-05-16 | F12: 1 | L12: 0.5 | N12: 0.5 | P12: 1 | X12: 1 | AB12: 1.5 | AF12: 2.5 | AJ12: =SUM(D12:AI12) -> 8
A14: MERCREDI | C14: 2017-05-17 | R14: 1 | X14: 1 | Z14: 1 | AF14: 5 | AJ14: =SUM(D14:AI14) -> 8
A16: JEUDI | C16: 2017-05-18 | F16: 1 | H16: 1 | L16: 1 | P16: 1 | R16: 1 | V16: 0.5 | X16: 1 | Z16: 1 | AF16: 0.5 | AJ16: =SUM(D16:AI16) -> 8
A18: VENDREDI | C18: 2017-05-19 | L18: 1 | N18: 1 | P18: 1 | R18: 1.5 | X18: 2 | AF18: 1.5 | AJ18: =SUM(D18:AI18) -> 8
A20: SAMEDI
D22: =D5 -> 0 | F22: =F5 -> PAVILLON BONENFANT | H22: =H5 -> HOPITAL LAVAL | J22: =J5 -> FONTAINE BLEAU | L22: =L5 -> MARLY CHATEL 3 | N22: =N5 -> LE ST-LAURENT | P22: =P5 -> ODÉON | R22: =R5 -> HOTEL CLASSIQUE | T22: =T5 -> MAISON DES AINÉS | V22: =V5 -> 736 PÈRE MARQUETTE | X22: =X5 -> LOUIS HÉMON | Z22: =Z5 -> ILOT ST-PATRICK | AB22: =AB5 -> TERRASSES DU SÉMINAIRE | AD22: =AD5 -> REP.GARANTIEBENOIT XV | AF22: =AF5 -> ADM | AH22: =AH5 -> AUTRES | AJ22: =SUM(AJ10,AJ12,AJ14,AJ16,AJ18,AJ20) -> 40
D23: =D7 -> 0 | F23: =F7 -> 16-5248 | H23: =H7 -> 16-5307 | J23: =J7 -> 16-5321 | L23: =L7 -> 17-5331 | N23: =N7 -> 17-5375 | P23: =P7 -> 17-5386 | R23: =R7 -> 17-5395 | T23: =T7 -> 17-5399 | V23: =V7 -> 17-5400 | X23: =X7 -> 17-5401 | Z23: =Z7 -> 17-5404 | AB23: =AB7 -> 17-5392 | AD23: =AD7 -> 17-5360 | AF23: =AF7 -> 0 | AH23: =AH7 -> 0
D24: =SUM(D10:E21) -> 0 | F24: =SUM(F10:G21) -> 2 | H24: =SUM(H10:I21) -> 1 | J24: =SUM(J10:K21) -> 0 | L24: =SUM(L10:M21) -> 3.5 | N24: =SUM(N10:O21) -> 1.5 | P24: =SUM(P10:Q21) -> 4 | R24: =SUM(R10:S21) -> 4.5 | T24: =SUM(T10:U21) -> 0 | V24: =SUM(V10:W21) -> 0.5 | X24: =SUM(X10:Y21) -> 6 | Z24: =SUM(Z10,Z12,Z14,Z16,Z18) -> 3 | AB24: =SUM(AB10,AB12,AB14,AB16,AB18,AB20) -> 1.5 | AD24: =SUM(AD10:AE21) -> 1 | AF24: =SUM(AF10:AG21) -> 11.5

Sheet 23-26 Mai
A5: CHANTIER NUMERO | F5: PAVILLON BONENFANT | H5: HOPITAL LAVAL | J5: FONTAINE BLEAU | L5: MARLY CHATEL 3 | N5: LE ST-LAURENT | P5: ODÉON | R5: HOTEL CLASSIQUE | T5: MAISON DES AINÉS | V5: 736 PÈRE MARQUETTE | X5: LOUIS HÉMON | Z5: ILOT ST-PATRICK | AD5: R.GARANTIE AUT ORLÉANS | AF5: ADM | AH5: AUTRES | AJ5: TOTAL
F7: 16-5248 | H7: 16-5307 | J7: 16-5321 | L7: 17-5331 | N7: 17-5375 | P7: 17-5386 | R7: 17-5395 | T7: 17-5399 | V7: 17-5400 | X7: 17-5401 | Z7: 17-5404 | AD7: 17-5360
A10: LUNDI | H10: 1.5 | L10: 2 | N10: 1 | R10: 1 | T10: 1.5 | X10: 1 | AJ10: =SUM(D10:AI10) -> 8
A12: MARDI | C12: 2017-05-23 | L12: 1 | N12: 1 | P12: 1 | V12: 1 | X12: 0.5 | AF12: 3.5 | AJ12: =SUM(D12:AI12) -> 8
A14: MERCREDI | C14: 2017-05-24 | AJ14: =SUM(D14:AI14) -> 0
A16: JEUDI | C16: 2017-05-25 | AJ16: =SUM(D16:AI16) -> 0
A18: VENDREDI | C18: 2017-05-26 | AJ18: =SUM(D18:AI18) -> 0
A20: SAMEDI
D22: =D5 -> 0 | F22: =F5 -> PAVILLON BONENFANT | H22: =H5 -> HOPITAL LAVAL | J22: =J5 -> FONTAINE BLEAU | L22: =L5 -> MARLY CHATEL 3 | N22: =N5 -> LE ST-LAURENT | P22: =P5 -> ODÉON | R22: =R5 -> HOTEL CLASSIQUE | T22: =T5 -> MAISON DES AINÉS | V22: =V5 -> 736 PÈRE MARQUETTE | X22: =X5 -> LOUIS HÉMON | Z22: =Z5 -> ILOT ST-PATRICK | AB22: =AB5 -> 0 | AD22: =AD5 -> R.GARANTIE AUT ORLÉANS | AF22: =AF5 -> ADM | AH22: =AH5 -> AUTRES | AJ22: =SUM(AJ10,AJ12,AJ14,AJ16,AJ18,AJ20) -> 16
D23: =D7 -> 0 | F23: =F7 -> 16-5248 | H23: =H7 -> 16-5307 | J23: =J7 -> 16-5321 | L23: =L7 -> 17-5331 | N23: =N7 -> 17-5375 | P23: =P7 -> 17-5386 | R23: =R7 -> 17-5395 | T23: =T7 -> 17-5399 | V23: =V7 -> 17-5400 | X23: =X7 -> 17-5401 | Z23: =Z7 -> 17-5404 | AB23: =AB7 -> 0 | AD23: =AD7 -> 17-5360 | AF23: =AF7 -> 0 | AH23: =AH7 -> 0
D24: =SUM(D10:E21) -> 0 | F24: =SUM(F10:G21) -> 0 | H24: =SUM(H10:I21) -> 1.5 | J24: =SUM(J10:K21) -> 0 | L24: =SUM(L10:M21) -> 3 | N24: =SUM(N10:O21) -> 2 | P24: =SUM(P10:Q21) -> 1 | R24: =SUM(R10:S21) -> 1 | T24: =SUM(T10:U21) -> 1.5 | V24: =SUM(V10:W21) -> 1 | X24: =SUM(X10:Y21) -> 1.5 | Z24: =SUM(Z10,Z12,Z14,Z16,Z18) -> 0 | AB24: =SUM(AB10,AB12,AB14,AB16,AB18,AB20) -> 0 | AD24: =SUM(AD10:AE21) -> 0 | AF24: =SUM(AF10:AG21) -> 3.5

Sheet 29-2 Juin
A5: CHANTIER NUMERO | F5: PAVILLON BONENFANT | H5: HOPITAL LAVAL | J5: FONTAINE BLEAU | L5: MARLY CHATEL 3 | N5: LE ST-LAURENT | P5: ODÉON | R5: HOTEL CLASSIQUE | T5: MAISON DES AINÉS | V5: 736 PÈRE MARQUETTE | X5: LOUIS HÉMON | Z5: ILOT ST-PATRICK | AD5: R.GARANTIE AUT ORLÉANS | AF5: ADM | AH5: AUTRES | AJ5: TOTAL
F7: 16-5248 | H7: 16-5307 | J7: 16-5321 | L7: 17-5331 | N7: 17-5375 | P7: 17-5386 | R7: 17-5395 | T7: 17-5399 | V7: 17-5400 | X7: 17-5401 | Z7: 17-5404 | AD7: 17-5360
A10: LUNDI | C10: 2017-05-29 | L10: 1.5 | P10: 1 | R10: 1 | Z10: 1.5 | AJ10: =SUM(D10:AI10) -> 5
A12: MARDI | C12: 2017-05-30 | H12: 1 | L12: 2 | N12: 0.5 | R12: 1 | Z12: 1.5 | AF12: 2.5 | AJ12: =SUM(D12:AI12) -> 8.5
A14: MERCREDI | C14: 2017-05-31 | F14: 1 | H14: 1 | L14: 1 | P14: 1 | R14: 1 | T14: 2 | AD14: 1 | AJ14: =SUM(D14:AI14) -> 8
A16: JEUDI | C16: 2017-06-01 | F16: 1 | L16: 1 | N16: 1 | P16: 1 | R16: 1 | Z16: 1 | AF16: 2 | AJ16: =SUM(D16:AI16) -> 8
A18: VENDREDI | C18: 2017-06-02 | F18: 1 | H18: 1 | L18: 1 | N18: 1 | P18: 1 | V18: 1 | Z18: 1 | AF18: 1 | AJ18: =SUM(D18:AI18) -> 8
A20: SAMEDI
D22: =D5 -> 0 | F22: =F5 -> PAVILLON BONENFANT | H22: =H5 -> HOPITAL LAVAL | J22: =J5 -> FONTAINE BLEAU | L22: =L5 -> MARLY CHATEL 3 | N22: =N5 -> LE ST-LAURENT | P22: =P5 -> ODÉON | R22: =R5 -> HOTEL CLASSIQUE | T22: =T5 -> MAISON DES AINÉS | V22: =V5 -> 736 PÈRE MARQUETTE | X22: =X5 -> LOUIS HÉMON | Z22: =Z5 -> ILOT ST-PATRICK | AB22: =AB5 -> 0 | AD22: =AD5 -> R.GARANTIE AUT ORLÉANS | AF22: =AF5 -> ADM | AH22: =AH5 -> AUTRES | AJ22: =SUM(AJ10,AJ12,AJ14,AJ16,AJ18,AJ20) -> 37.5
D23: =D7 -> 0 | F23: =F7 -> 16-5248 | H23: =H7 -> 16-5307 | J23: =J7 -> 16-5321 | L23: =L7 -> 17-5331 | N23: =N7 -> 17-5375 | P23: =P7 -> 17-5386 | R23: =R7 -> 17-5395 | T23: =T7 -> 17-5399 | V23: =V7 -> 17-5400 | X23: =X7 -> 17-5401 | Z23: =Z7 -> 17-5404 | AB23: =AB7 -> 0 | AD23: =AD7 -> 17-5360 | AF23: =AF7 -> 0 | AH23: =AH7 -> 0
D24: =SUM(D10:E21) -> 0 | F24: =SUM(F10:G21) -> 3 | H24: =SUM(H10:I21) -> 3 | J24: =SUM(J10:K21) -> 0 | L24: =SUM(L10:M21) -> 6.5 | N24: =SUM(N10:O21) -> 2.5 | P24: =SUM(P10:Q21) -> 4 | R24: =SUM(R10:S21) -> 4 | T24: =SUM(T10:U21) -> 2 | V24: =SUM(V10:W21) -> 1 | X24: =SUM(X10:Y21) -> 0 | Z24: =SUM(Z10,Z12,Z14,Z16,Z18) -> 5 | AB24: =SUM(AB10,AB12,AB14,AB16,AB18,AB20) -> 0 | AD24: =SUM(AD10:AE21) -> 1 | AF24: =SUM(AF10:AG21) -> 5.5

Sheet 5-9 Juin
A5: CHANTIER NUMERO | F5: PAVILLON BONENFANT | H5: HOPITAL LAVAL | J5: FONTAINE BLEAU | L5: MARLY CHATEL 3 | N5: LE ST-LAURENT | P5: ODÉON | R5: HOTEL CLASSIQUE | T5: MAISON DES AINÉS | X5: ILOT ST-PATRICK | Z5: PÈRE MARQUETTE | AF5: ADM | AH5: AUTRES | AJ5: TOTAL
F7: 16-5248 | H7: 16-5307 | J7: 16-5321 | L7: 17-5331 | N7: 17-5375 | P7: 17-5386 | R7: 17-5395 | T7: 17-5399 | X7: 17-5404 | Z7: 16-5259
A10: LUNDI | C10: 2017-06-05 | F10: 1 | L10: 1 | N10: 2 | P10: 1 | R10: 1 | X10: 1 | AF10: 1 | AJ10: =SUM(D10:AI10) -> 8
A12: MARDI | C12: 2017-06-06 | L12: 1 | P12: 1.5 | X12: 1 | Z12: 2.5 | AF12: 2 | AJ12: =SUM(D12:AI12) -> 8
A14: MERCREDI | C14: 2017-06-07 | F14: 1 | H14: 1 | L14: 1 | N14: 1 | R14: 1 | T14: 2 | X14: 1 | AF14: 1 | AJ14: =SUM(D14:AI14) -> 9
A16: JEUDI | C16: 2017-06-08 | N16: 1 | P16: 1 | X16: 2 | Z16: 2 | AF16: 2 | AJ16: =SUM(D16:AI16) -> 8
A18: VENDREDI | C18: 2017-06-09 | F18: 1 | N18: 1 | T18: 2 | X18: 1 | AF18: 3 | AJ18: =SUM(D18:AI18) -> 8
A20: SAMEDI
D22: =D5 -> 0 | F22: =F5 -> PAVILLON BONENFANT | H22: =H5 -> HOPITAL LAVAL | J22: =J5 -> FONTAINE BLEAU | L22: =L5 -> MARLY CHATEL 3 | N22: =N5 -> LE ST-LAURENT | P22: =P5 -> ODÉON | R22: =R5 -> HOTEL CLASSIQUE | T22: =T5 -> MAISON DES AINÉS | V22: =V5 -> 0 | X22: =X5 -> ILOT ST-PATRICK | Z22: =Z5 -> PÈRE MARQUETTE | AB22: =AB5 -> 0 | AD22: =AD5 -> 0 | AF22: =AF5 -> ADM | AH22: =AH5 -> AUTRES | AJ22: =SUM(AJ10,AJ12,AJ14,AJ16,AJ18,AJ20) -> 41
D23: =D7 -> 0 | F23: =F7 -> 16-5248 | H23: =H7 -> 16-5307 | J23: =J7 -> 16-5321 | L23: =L7 -> 17-5331 | N23: =N7 -> 17-5375 | P23: =P7 -> 17-5386 | R23: =R7 -> 17-5395 | T23: =T7 -> 17-5399 | V23: =V7 -> 0 | X23: =X7 -> 17-5404 | Z23: =Z7 -> 16-5259 | AB23: =AB7 -> 0 | AD23: =AD7 -> 0 | AF23: =AF7 -> 0 | AH23: =AH7 -> 0
D24: =SUM(D10:E21) -> 0 | F24: =SUM(F10:G21) -> 3 | H24: =SUM(H10:I21) -> 1 | J24: =SUM(J10:K21) -> 0 | L24: =SUM(L10:M21) -> 3 | N24: =SUM(N10:O21) -> 5 | P24: =SUM(P10:Q21) -> 3.5 | R24: =SUM(R10:S21) -> 2 | T24: =SUM(T10:U21) -> 4 | V24: =SUM(V10:W21) -> 0 | X24: =SUM(X10:Y21) -> 6 | Z24: =SUM(Z10,Z12,Z14,Z16,Z18) -> 4.5 | AB24: =SUM(AB10,AB12,AB14,AB16,AB18,AB20) -> 0 | AD24: =SUM(AD10:AE21) -> 0 | AF24: =SUM(AF10:AG21) -> 9

Sheet 12-16 Juin
A5: CHANTIER NUMERO | F5: PAVILLON BONENFANT | H5: HOPITAL LAVAL | J5: LE ST-LAURENT | L5: ODÉON | N5: HOTEL CLASSIQUE | P5: PÈRE MARQUETTE | R5: GROUPE MACH | T5: BENMORE | V5: WENDAKE | X5: CENTRE DES CONGRES | Z5: 2323 CHAPDELEINE | AF5: ADM | AH5: AUTRES | AJ5: TOTAL
F7: 16-5248 | H7: 16-5307 | J7: 17-5375 | L7: 17-5386 | N7: 17-5395 | P7: 16-5259 | R7: 17-5425 | T7: 17-5407 | V7: 17-5429 | X7: 17-5406 | Z7: 17-5411
A10: LUNDI | C10: 2017-06-12 | H10: 1 | J10: 1 | N10: 1 | T10: 2 | AF10: 3 | AJ10: =SUM(D10:AI10) -> 8
A12: MARDI | C12: 2017-06-13 | F12: 1 | P12: 1.5 | R12: 1.5 | T12: 2 | AF12: 2 | AJ12: =SUM(D12:AI12) -> 8
A14: MERCREDI | C14: 2017-06-14 | L14: 1 | N14: 1 | P14: 1.5 | R14: 1 | T14: 1 | AF14: 2.5 | AJ14: =SUM(D14:AI14) -> 8
A16: JEUDI | C16: 2017-06-15 | F16: 1 | J16: 1 | L16: 1 | P16: 2.5 | R16: 1.5 | T16: 1 | AJ16: =SUM(D16:AI16) -> 8
A18: VENDREDI | C18: 2017-06-16 | L18: 1 | N18: 1 | T18: 1 | V18: 1.5 | X18: 1 | Z18: 1 | AF18: 1.5 | AJ18: =SUM(D18:AI18) -> 8
A20: SAMEDI
D22: =D5 -> 0 | F22: =F5 -> PAVILLON BONENFANT | H22: =H5 -> HOPITAL LAVAL | J22: =J5 -> LE ST-LAURENT | L22: =L5 -> ODÉON | N22: =N5 -> HOTEL CLASSIQUE | P22: =P5 -> PÈRE MARQUETTE | R22: =R5 -> GROUPE MACH | T22: =T5 -> BENMORE | V22: =V5 -> WENDAKE | X22: =X5 -> CENTRE DES CONGRES | Z22: =Z5 -> 2323 CHAPDELEINE | AB22: =AB5 -> 0 | AD22: =AD5 -> 0 | AF22: =AF5 -> ADM | AH22: =AH5 -> AUTRES | AJ22: =SUM(AJ10,AJ12,AJ14,AJ16,AJ18,AJ20) -> 40
D23: =D7 -> 0 | F23: =F7 -> 16-5248 | H23: =H7 -> 16-5307 | J23: =J7 -> 17-5375 | L23: =L7 -> 17-5386 | N23: =N7 -> 17-5395 | P23: =P7 -> 16-5259 | R23: =R7 -> 17-5425 | T23: =T7 -> 17-5407 | V23: =V7 -> 17-5429 | X23: =X7 -> 17-5406 | Z23: =Z7 -> 17-5411 | AB23: =AB7 -> 0 | AD23: =AD7 -> 0 | AF23: =AF7 -> 0 | AH23: =AH7 -> 0
D24: =SUM(D10:E21) -> 0 | F24: =SUM(F10:G21) -> 2 | H24: =SUM(H10:I21) -> 1 | J24: =SUM(J10:K21) -> 2 | L24: =SUM(L10:M21) -> 3 | N24: =SUM(N10:O21) -> 3 | P24: =SUM(P10:Q21) -> 5.5 | R24: =SUM(R10:S21) -> 4 | T24: =SUM(T10:U21) -> 7 | V24: =SUM(V10:W21) -> 1.5 | X24: =SUM(X10:Y21) -> 1 | Z24: =SUM(Z10,Z12,Z14,Z16,Z18) -> 1 | AB24: =SUM(AB10,AB12,AB14,AB16,AB18,AB20) -> 0 | AD24: =SUM(AD10:AE21) -> 0 | AF24: =SUM(AF10:AG21) -> 9

Sheet 19-22 Juin
A5: CHANTIER NUMERO | F5: PAVILLON BONENFANT | H5: HOPITAL LAVAL | J5: LE ST-LAURENT | L5: ODÉON | N5: HOTEL CLASSIQUE | P5: CENTRE DES CONGRES | R5: 2323 CHAPDELEINE | T5: PAVILLON LACERTE | V5: FIDUCIE ST-DOMINIQUE | X5: GROUPE MACH | Z5: WENDAKE | AF5: ADM | AJ5: TOTAL
F7: 16-5248 | H7: 16-5307 | J7: 17-5375 | L7: 17-5386 | N7: 17-5395 | P7: 17-5406 | R7: 17-5411 | T7: 17-5415 | V7: 17-5424 | X7: 17-5425 | Z7: 17-5429
A10: LUNDI | C10: 2017-06-19 | F10: 1 | L10: 1 | P10: 1.5 | R10: 1 | T10: 1.5 | X10: 1 | Z10: 2 | AJ10: =SUM(D10:AI10) -> 9
A12: MARDI | C12: 2017-06-20 | P12: 1.5 | T12: 1 | V12: 1.5 | X12: 1.5 | AF12: 2.5 | AJ12: =SUM(D12:AI12) -> 8
A14: MERCREDI | C14: 2017-06-21 | L14: 1 | P14: 1 | T14: 1 | V14: 1.5 | X14: 2 | Z14: 0.5 | AF14: 2 | AJ14: =SUM(D14:AI14) -> 9
A16: JEUDI | C16: 2017-06-22 | F16: 1 | H16: 1 | J16: 1 | P16: 1 | R16: 1 | T16: 1 | X16: 2 | AJ16: =SUM(D16:AI16) -> 8
A18: VENDREDI | AJ18: =SUM(D18:AI18) -> 0
A20: SAMEDI
D22: =D5 -> 0 | F22: =F5 -> PAVILLON BONENFANT | H22: =H5 -> HOPITAL LAVAL | J22: =J5 -> LE ST-LAURENT | L22: =L5 -> ODÉON | N22: =N5 -> HOTEL CLASSIQUE | P22: =P5 -> CENTRE DES CONGRES | R22: =R5 -> 2323 CHAPDELEINE | T22: =T5 -> PAVILLON LACERTE | V22: =V5 -> FIDUCIE ST-DOMINIQUE | X22: =X5 -> GROUPE MACH | Z22: =Z5 -> WENDAKE | AB22: =AB5 -> 0 | AD22: =AD5 -> 0 | AF22: =AF5 -> ADM | AH22: =AH5 -> 0 | AJ22: =SUM(AJ10,AJ12,AJ14,AJ16,AJ18,AJ20) -> 34
D23: =D7 -> 0 | F23: =F7 -> 16-5248 | H23: =H7 -> 16-5307 | J23: =J7 -> 17-5375 | L23: =L7 -> 17-5386 | N23: =N7 -> 17-5395 | P23: =P7 -> 17-5406 | R23: =R7 -> 17-5411 | T23: =T7 -> 17-5415 | V23: =V7 -> 17-5424 | X23: =X7 -> 17-5425 | Z23: =Z7 -> 17-5429 | AB23: =AB7 -> 0 | AD23: =AD7 -> 0 | AF23: =AF7 -> 0 | AH23: =AH7 -> 0
D24: =SUM(D10:E21) -> 0 | F24: =SUM(F10:G21) -> 2 | H24: =SUM(H10:I21) -> 1 | J24: =SUM(J10:K21) -> 1 | L24: =SUM(L10:M21) -> 2 | N24: =SUM(N10:O21) -> 0 | P24: =SUM(P10:Q21) -> 5 | R24: =SUM(R10:S21) -> 2 | T24: =SUM(T10:U21) -> 4.5 | V24: =SUM(V10:W21) -> 3 | X24: =SUM(X10:Y21) -> 6.5 | Z24: =SUM(Z10,Z12,Z14,Z16,Z18) -> 2.5 | AB24: =SUM(AB10,AB12,AB14,AB16,AB18,AB20) -> 0 | AD24: =SUM(AD10:AE21) -> 0 | AF24: =SUM(AF10:AG21) -> 4.5

Sheet 26-29 Juin
A5: CHANTIER NUMERO | F5: PAVILLON BONENFANT | H5: HOPITAL LAVAL | J5: HOTEL CLASSIQUE | L5: CENTRE DES CONGRES | N5: 2323 CHAPDELEINE | P5: PAVILLON LACERTE | R5: FIDUCIE ST-DOMINIQUE | T5: GROUPE MACH | V5: PERISCOPE | X5: MERICI | AF5: ADM | AJ5: TOTAL
F7: 16-5248 | H7: 16-5307 | J7: 17-5395 | L7: 17-5406 | N7: 17-5411 | P7: 17-5415 | R7: 17-5424 | T7: 17-5425 | V7: 17-5430 | X7: 17-5414
A10: LUNDI | C10: 2017-06-26 | F10: 1.5 | L10: 1.5 | N10: 1 | P10: 1.5 | R10: 2 | T10: 0.5 | AF10: 0.5 | AJ10: =SUM(D10:AI10) -> 8.5
A12: MARDI | C12: 2017-06-27 | H12: 0.5 | L12: 1.5 | N12: 1 | P12: 1 | R12: 1.5 | AF12: 3.5 | AJ12: =SUM(D12:AI12) -> 9
A14: MERCREDI | C14: 2017-06-28 | N14: 1 | P14: 1 | R14: 1 | V14: 2 | X14: 2.5 | AF14: 1 | AJ14: =SUM(D14:AI14) -> 8.5
A16: JEUDI | C16: 2017-06-29 | F16: 1 | L16: 1 | N16: 1 | P16: 1.5 | R16: 1 | X16: 1.5 | AF16: 1 | AJ16: =SUM(D16:AI16) -> 8
A18: VENDREDI | AJ18: =SUM(D18:AI18) -> 0
A20: SAMEDI
D22: =D5 -> 0 | F22: =F5 -> PAVILLON BONENFANT | H22: =H5 -> HOPITAL LAVAL | J22: =J5 -> HOTEL CLASSIQUE | L22: =L5 -> CENTRE DES CONGRES | N22: =N5 -> 2323 CHAPDELEINE | P22: =P5 -> PAVILLON LACERTE | R22: =R5 -> FIDUCIE ST-DOMINIQUE | T22: =T5 -> GROUPE MACH | V22: =V5 -> PERISCOPE | X22: =X5 -> MERICI | Z22: =Z5 -> 0 | AB22: =AB5 -> 0 | AD22: =AD5 -> 0 | AF22: =AF5 -> ADM | AH22: =AH5 -> 0 | AJ22: =SUM(AJ10,AJ12,AJ14,AJ16,AJ18,AJ20) -> 34
D23: =D7 -> 0 | F23: =F7 -> 16-5248 | H23: =H7 -> 16-5307 | J23: =J7 -> 17-5395 | L23: =L7 -> 17-5406 | N23: =N7 -> 17-5411 | P23: =P7 -> 17-5415 | R23: =R7 -> 17-5424 | T23: =T7 -> 17-5425 | V23: =V7 -> 17-5430 | X23: =X7 -> 17-5414 | Z23: =Z7 -> 0 | AB23: =AB7 -> 0 | AD23: =AD7 -> 0 | AF23: =AF7 -> 0 | AH23: =AH7 -> 0
D24: =SUM(D10:E21) -> 0 | F24: =SUM(F10:G21) -> 2.5 | H24: =SUM(H10:I21) -> 0.5 | J24: =SUM(J10:K21) -> 0 | L24: =SUM(L10:M21) -> 4 | N24: =SUM(N10:O21) -> 4 | P24: =SUM(P10:Q21) -> 5 | R24: =SUM(R10:S21) -> 5.5 | T24: =SUM(T10:U21) -> 0.5 | V24: =SUM(V10:W21) -> 2 | X24: =SUM(X10:Y21) -> 4 | Z24: =SUM(Z10,Z12,Z14,Z16,Z18) -> 0 | AB24: =SUM(AB10,AB12,AB14,AB16,AB18,AB20) -> 0 | AD24: =SUM(AD10:AE21) -> 0 | AF24: =SUM(AF10:AG21) -> 6

Sheet 3-7 Jui
A5: CHANTIER NUMERO | F5: PAVILLON BONENFANT | H5: HOPITAL LAVAL | J5: HOTEL CLASSIQUE | L5: CENTRE DES CONGRES | N5: 2323 CHAPDELEINE | P5: MERICI | R5: PAVILLON LACERTE | T5: FIDUCIE ST-DOMINIQUE | V5: GROUPE MACH | X5: MÉRICI | Z5: PERISCOPE | AF5: ADM | AJ5: TOTAL
F7: 16-5248 | H7: 16-5307 | J7: 17-5395 | L7: 17-5406 | N7: 17-5411 | P7: 17-5414 | R7: 17-5415 | T7: 17-5424 | V7: 17-5425 | X7: 17-5427 | Z7: 17-5430
A10: LUNDI | C10: 2017-07-03 | L10: 2 | N10: 1 | P10: 2 | T10: 2 | AF10: 2 | AJ10: =SUM(D10:AI10) -> 9
A12: MARDI | C12: 2017-07-04 | L12: 1 | N12: 1 | P12: 7 | AF12: 0.5 | AJ12: =SUM(D12:AI12) -> 9.5
A14: MERCREDI | C14: 2017-07-05 | F14: 1 | L14: 2 | N14: 0.5 | P14: 2 | R14: 2 | T14: 1 | AF14: 1 | AJ14: =SUM(D14:AI14) -> 9.5
A16: JEUDI | C16: 2017-07-06 | P16: 5.5 | AF16: 3.5 | AJ16: =SUM(D16:AI16) -> 9
A18: VENDREDI | C18: 2017-07-07 | F18: 0.5 | H18: 1 | L18: 1.5 | P18: 1.5 | R18: 1 | T18: 1 | AF18: 2 | AJ18: =SUM(D18:AI18) -> 8.5
A20: SAMEDI
D22: =D5 -> 0 | F22: =F5 -> PAVILLON BONENFANT | H22: =H5 -> HOPITAL LAVAL | J22: =J5 -> HOTEL CLASSIQUE | L22: =L5 -> CENTRE DES CONGRES | N22: =N5 -> 2323 CHAPDELEINE | P22: =P5 -> MERICI | R22: =R5 -> PAVILLON LACERTE | T22: =T5 -> FIDUCIE ST-DOMINIQUE | V22: =V5 -> GROUPE MACH | X22: =X5 -> MÉRICI | Z22: =Z5 -> PERISCOPE | AB22: =AB5 -> 0 | AD22: =AD5 -> 0 | AF22: =AF5 -> ADM | AH22: =AH5 -> 0 | AJ22: =SUM(AJ10,AJ12,AJ14,AJ16,AJ18,AJ20) -> 45.5
D23: =D7 -> 0 | F23: =F7 -> 16-5248 | H23: =H7 -> 16-5307 | J23: =J7 -> 17-5395 | L23: =L7 -> 17-5406 | N23: =N7 -> 17-5411 | P23: =P7 -> 17-5414 | R23: =R7 -> 17-5415 | T23: =T7 -> 17-5424 | V23: =V7 -> 17-5425 | X23: =X7 -> 17-5427 | Z23: =Z7 -> 17-5430 | AB23: =AB7 -> 0 | AD23: =AD7 -> 0 | AF23: =AF7 -> 0 | AH23: =AH7 -> 0
D24: =SUM(D10:E21) -> 0 | F24: =SUM(F10:G21) -> 1.5 | H24: =SUM(H10:I21) -> 1 | J24: =SUM(J10:K21) -> 0 | L24: =SUM(L10:M21) -> 6.5 | N24: =SUM(N10:O21) -> 2.5 | P24: =SUM(P10:Q21) -> 18 | R24: =SUM(R10:S21) -> 3 | T24: =SUM(T10:U21) -> 4 | V24: =SUM(V10:W21) -> 0 | X24: =SUM(X10:Y21) -> 0 | Z24: =SUM(Z10,Z12,Z14,Z16,Z18) -> 0 | AB24: =SUM(AB10,AB12,AB14,AB16,AB18,AB20) -> 0 | AD24: =SUM(AD10:AE21) -> 0 | AF24: =SUM(AF10:AG21) -> 9

Sheet 10-14 Jui
A5: CHANTIER NUMERO | F5: PAVILLON BONENFANT | H5: HOPITAL LAVAL | J5: HOTEL CLASSIQUE | L5: CENTRE DES CONGRES | N5: MERICI | P5: PAVILLON LACERTE | R5: FIDUCIE ST-DOMINIQUE | T5: PERISCOPE | V5: IRDPQ | AF5: ADM | AJ5: TOTAL
F7: 16-5248 | H7: 16-5307 | J7: 17-5395 | L7: 17-5406 | N7: 17-5414 | P7: 17-5415 | R7: 17-5424 | T7: 17-5430 | V7: 17-543-
A10: LUNDI | C10: 2017-07-10 | F10: 1 | L10: 6 | N10: 1 | P10: 1 | R10: 2 | T10: 1 | AJ10: =SUM(D10:AI10) -> 12
A12: MARDI | C12: 2017-07-11 | L12: 4 | P12: 1.5 | T12: 1.5 | V12: 2 | AJ12: =SUM(D12:AI12) -> 9
A14: MERCREDI | C14: 2017-07-12 | F14: 1 | L14: 2 | P14: 1.5 | T14: 1.5 | V14: 2 | AF14: 1 | AJ14: =SUM(D14:AI14) -> 9
A16: JEUDI | C16: 2017-07-13 | F16: 1 | H16: 1 | L16: 2 | P16: 1.5 | T16: 1 | V16: 1 | AF16: 1 | AJ16: =SUM(D16:AI16) -> 8.5
A18: VENDREDI | C18: 2017-07-14 | F18: 1 | P18: 1.5 | T18: 1 | V18: 1.5 | AJ18: =SUM(D18:AI18) -> 5
A20: SAMEDI
D22: =D5 -> 0 | F22: =F5 -> PAVILLON BONENFANT | H22: =H5 -> HOPITAL LAVAL | J22: =J5 -> HOTEL CLASSIQUE | L22: =L5 -> CENTRE DES CONGRES | N22: =N5 -> MERICI | P22: =P5 -> PAVILLON LACERTE | R22: =R5 -> FIDUCIE ST-DOMINIQUE | T22: =T5 -> PERISCOPE | V22: =V5 -> IRDPQ | X22: =X5 -> 0 | Z22: =Z5 -> 0 | AB22: =AB5 -> 0 | AD22: =AD5 -> 0 | AF22: =AF5 -> ADM | AH22: =AH5 -> 0 | AJ22: =SUM(AJ10,AJ12,AJ14,AJ16,AJ18,AJ20) -> 43.5
D23: =D7 -> 0 | F23: =F7 -> 16-5248 | H23: =H7 -> 16-5307 | J23: =J7 -> 17-5395 | L23: =L7 -> 17-5406 | N23: =N7 -> 17-5414 | P23: =P7 -> 17-5415 | R23: =R7 -> 17-5424 | T23: =T7 -> 17-5430 | V23: =V7 -> 17-543- | X23: =X7 -> 0 | Z23: =Z7 -> 0 | AB23: =AB7 -> 0 | AD23: =AD7 -> 0 | AF23: =AF7 -> 0 | AH23: =AH7 -> 0
D24: =SUM(D10:E21) -> 0 | F24: =SUM(F10:G21) -> 4 | H24: =SUM(H10:I21) -> 1 | J24: =SUM(J10:K21) -> 0 | L24: =SUM(L10:M21) -> 14 | N24: =SUM(N10:O21) -> 1 | P24: =SUM(P10:Q21) -> 7 | R24: =SUM(R10:S21) -> 2 | T24: =SUM(T10:U21) -> 6 | V24: =SUM(V10:W21) -> 6.5 | X24: =SUM(X10:Y21) -> 0 | Z24: =SUM(Z10,Z12,Z14,Z16,Z18) -> 0 | AB24: =SUM(AB10,AB12,AB14,AB16,AB18,AB20) -> 0 | AD24: =SUM(AD10:AE21) -> 0 | AF24: =SUM(AF10:AG21) -> 2

Sheet 17-21 Jui
A5: CHANTIER NUMERO | F5: PAVILLON BONENFANT | H5: HOPITAL LAVAL | J5: HOTEL CLASSIQUE | L5: CENTRE DES CONGRES | N5: PAVILLON LACERTE | P5: FIDUCIE ST-DOMINIQUE | R5: PERISCOPE | T5: IRDPQ | AF5: ADM | AJ5: TOTAL
F7: 16-5248 | H7: 16-5307 | J7: 17-5395 | L7: 17-5406 | N7: 17-5415 | P7: 17-5424 | R7: 17-5430 | T7: 17-5434
A10: LUNDI | C10: 2017-07-17 | F10: 1 | H10: 1 | J10: 1 | N10: 1 | R10: 2.5 | T10: 1.5 | AJ10: =SUM(D10:AI10) -> 8
A12: MARDI | C12: 2017-07-18 | N12: 1 | R12: 1 | T12: 2 | AF12: 4 | AJ12: =SUM(D12:AI12) -> 8
A14: MERCREDI | C14: 2017-07-19 | H14: 1 | J14: 1 | N14: 1 | R14: 1 | T14: 2 | AF14: 2 | AJ14: =SUM(D14:AI14) -> 8
A16: JEUDI | C16: 2017-07-20 | F16: 1 | J16: 1 | N16: 1 | R16: 1.5 | T16: 3 | AF16: 0.5 | AJ16: =SUM(D16:AI16) -> 8
A18: VENDREDI | C18: 2017-07-21 | J18: 0.5 | N18: 1 | T18: 3 | AF18: 1 | AJ18: =SUM(D18:AI18) -> 5.5
A20: SAMEDI
D22: =D5 -> 0 | F22: =F5 -> PAVILLON BONENFANT | H22: =H5 -> HOPITAL LAVAL | J22: =J5 -> HOTEL CLASSIQUE | L22: =L5 -> CENTRE DES CONGRES | N22: =N5 -> PAVILLON LACERTE | P22: =P5 -> FIDUCIE ST-DOMINIQUE | R22: =R5 -> PERISCOPE | T22: =T5 -> IRDPQ | V22: =V5 -> 0 | X22: =X5 -> 0 | Z22: =Z5 -> 0 | AB22: =AB5 -> 0 | AD22: =AD5 -> 0 | AF22: =AF5 -> ADM | AH22: =AH5 -> 0 | AJ22: =SUM(AJ10,AJ12,AJ14,AJ16,AJ18,AJ20) -> 37.5
D23: =D7 -> 0 | F23: =F7 -> 16-5248 | H23: =H7 -> 16-5307 | J23: =J7 -> 17-5395 | L23: =L7 -> 17-5406 | N23: =N7 -> 17-5415 | P23: =P7 -> 17-5424 | R23: =R7 -> 17-5430 | T23: =T7 -> 17-5434 | V23: =V7 -> 0 | X23: =X7 -> 0 | Z23: =Z7 -> 0 | AB23: =AB7 -> 0 | AD23: =AD7 -> 0 | AF23: =AF7 -> 0 | AH23: =AH7 -> 0
D24: =SUM(D10:E21) -> 0 | F24: =SUM(F10:G21) -> 2 | H24: =SUM(H10:I21) -> 2 | J24: =SUM(J10:K21) -> 3.5 | L24: =SUM(L10:M21) -> 0 | N24: =SUM(N10:O21) -> 5 | P24: =SUM(P10:Q21) -> 0 | R24: =SUM(R10:S21) -> 6 | T24: =SUM(T10:U21) -> 11.5 | V24: =SUM(V10:W21) -> 0 | X24: =SUM(X10:Y21) -> 0 | Z24: =SUM(Z10,Z12,Z14,Z16,Z18) -> 0 | AB24: =SUM(AB10,AB12,AB14,AB16,AB18,AB20) -> 0 | AD24: =SUM(AD10:AE21) -> 0 | AF24: =SUM(AF10:AG21) -> 7.5

Sheet 7-11 Aout
A5: CHANTIER NUMERO | F5: PAVILLON BONENFANT | H5: HOPITAL LAVAL | J5: HOTEL CLASSIQUE | L5: CENTRE DES CONGRES | N5: PAVILLON LACERTE | P5: FIDUCIE ST-DOMINIQUE | R5: PERISCOPE | T5: IRDPQ | V5: CHAMONIX | X5: LE NOBLET | AF5: ADM | AJ5: TOTAL
F7: 16-5248 | H7: 16-5307 | J7: 17-5395 | L7: 17-5406 | N7: 17-5415 | P7: 17-5424 | R7: 17-5430 | T7: 17-5434 | V7: 17-5437 | X7: 17-5440
A10: LUNDI | C10: 2017-08-07 | F10: 1 | H10: 1 | J10: 1 | N10: 2 | R10: 1 | T10: 1 | V10: 1 | AJ10: =SUM(D10:AI10) -> 8
A12: MARDI | C12: 2017-08-08 | F12: 1 | N12: 1 | R12: 1 | T12: 3.5 | X12: 1.5 | AJ12: =SUM(D12:AI12) -> 8
A14: MERCREDI | C14: 2017-08-09 | F14: 1.5 | H14: 1 | N14: 1.5 | R14: 1 | V14: 1 | AF14: 2 | AJ14: =SUM(D14:AI14) -> 8
A16: JEUDI | C16: 2017-08-10 | F16: 1 | J16: 1 | N16: 2 | R16: 1.5 | V16: 1 | X16: 1.5 | AJ16: =SUM(D16:AI16) -> 8
A18: VENDREDI | C18: 2017-08-11 | F18: 1 | H18: 2 | J18: 0.5 | N18: 3.5 | R18: 1 | AJ18: =SUM(D18:AI18) -> 8
A20: SAMEDI
D22: =D5 -> 0 | F22: =F5 -> PAVILLON BONENFANT | H22: =H5 -> HOPITAL LAVAL | J22: =J5 -> HOTEL CLASSIQUE | L22: =L5 -> CENTRE DES CONGRES | N22: =N5 -> PAVILLON LACERTE | P22: =P5 -> FIDUCIE ST-DOMINIQUE | R22: =R5 -> PERISCOPE | T22: =T5 -> IRDPQ | V22: =V5 -> CHAMONIX | X22: =X5 -> LE NOBLET | Z22: =Z5 -> 0 | AB22: =AB5 -> 0 | AD22: =AD5 -> 0 | AF22: =AF5 -> ADM | AH22: =AH5 -> 0 | AJ22: =SUM(AJ10,AJ12,AJ14,AJ16,AJ18,AJ20) -> 40
D23: =D7 -> 0 | F23: =F7 -> 16-5248 | H23: =H7 -> 16-5307 | J23: =J7 -> 17-5395 | L23: =L7 -> 17-5406 | N23: =N7 -> 17-5415 | P23: =P7 -> 17-5424 | R23: =R7 -> 17-5430 | T23: =T7 -> 17-5434 | V23: =V7 -> 17-5437 | X23: =X7 -> 17-5440 | Z23: =Z7 -> 0 | AB23: =AB7 -> 0 | AD23: =AD7 -> 0 | AF23: =AF7 -> 0 | AH23: =AH7 -> 0
D24: =SUM(D10:E21) -> 0 | F24: =SUM(F10:G21) -> 5.5 | H24: =SUM(H10:I21) -> 4 | J24: =SUM(J10:K21) -> 2.5 | L24: =SUM(L10:M21) -> 0 | N24: =SUM(N10:O21) -> 10 | P24: =SUM(P10:Q21) -> 0 | R24: =SUM(R10:S21) -> 5.5 | T24: =SUM(T10:U21) -> 4.5 | V24: =SUM(V10:W21) -> 3 | X24: =SUM(X10:Y21) -> 3 | Z24: =SUM(Z10,Z12,Z14,Z16,Z18) -> 0 | AB24: =SUM(AB10,AB12,AB14,AB16,AB18,AB20) -> 0 | AD24: =SUM(AD10:AE21) -> 0 | AF24: =SUM(AF10:AG21) -> 2

Sheet 14-18 Aout
A5: CHANTIER NUMERO | F5: PAVILLON BONENFANT | H5: HOPITAL LAVAL | J5: FONTAINE BLEAU | L5: HOTEL CLASSIQUE | N5: CENTRE DES CONGRES | P5: PAVILLON LACERTE | R5: FIDUCIE ST-DOMINIQUE | T5: PERISCOPE | V5: CHAMONIX | X5: LE NOBLET | Z5: LE BERNIERES | AF5: ADM | AJ5: TOTAL
F7: 16-5248 | H7: 16-5307 | J7: 16-5321 | L7: 17-5395 | N7: 17-5406 | P7: 17-5415 | R7: 17-5424 | T7: 17-5430 | V7: 17-5437 | X7: 17-5440 | Z7: 17-5441
A10: LUNDI | C10: 2017-08-14 | F10: 1 | J10: 1 | P10: 3 | T10: 2 | V10: 0.5 | X10: 0.5 | AJ10: =SUM(D10:AI10) -> 8
A12: MARDI | C12: 2017-08-15 | F12: 1 | H12: 1 | J12: 1 | P12: 3 | T12: 1.5 | V12: 0.5 | AJ12: =SUM(D12:AI12) -> 8
A14: MERCREDI | C14: 2017-08-16 | J14: 0.5 | P14: 3.5 | T14: 1 | X14: 0.5 | AF14: 2.5 | AJ14: =SUM(D14:AI14) -> 8
A16: JEUDI | C16: 2017-08-17 | P16: 5 | T16: 1 | V16: 1 | X16: 0.5 | AF16: 0.5 | AJ16: =SUM(D16:AI16) -> 8
A18: VENDREDI | C18: 2017-08-18 | P18: 7 | AF18: 1 | AJ18: =SUM(D18:AI18) -> 8
A20: SAMEDI
D22: =D5 -> 0 | F22: =F5 -> PAVILLON BONENFANT | H22: =H5 -> HOPITAL LAVAL | J22: =J5 -> FONTAINE BLEAU | L22: =L5 -> HOTEL CLASSIQUE | N22: =N5 -> CENTRE DES CONGRES | P22: =P5 -> PAVILLON LACERTE | R22: =R5 -> FIDUCIE ST-DOMINIQUE | T22: =T5 -> PERISCOPE | V22: =V5 -> CHAMONIX | X22: =X5 -> LE NOBLET | Z22: =Z5 -> LE BERNIERES | AB22: =AB5 -> 0 | AD22: =AD5 -> 0 | AF22: =AF5 -> ADM | AH22: =AH5 -> 0 | AJ22: =SUM(AJ10,AJ12,AJ14,AJ16,AJ18,AJ20) -> 40
D23: =D7 -> 0 | F23: =F7 -> 16-5248 | H23: =H7 -> 16-5307 | J23: =J7 -> 16-5321 | L23: =L7 -> 17-5395 | N23: =N7 -> 17-5406 | P23: =P7 -> 17-5415 | R23: =R7 -> 17-5424 | T23: =T7 -> 17-5430 | V23: =V7 -> 17-5437 | X23: =X7 -> 17-5440 | Z23: =Z7 -> 17-5441 | AB23: =AB7 -> 0 | AD23: =AD7 -> 0 | AF23: =AF7 -> 0 | AH23: =AH7 -> 0
D24: =SUM(D10:E21) -> 0 | F24: =SUM(F10:G21) -> 2 | H24: =SUM(H10:I21) -> 1 | J24: =SUM(J10:K21) -> 2.5 | L24: =SUM(L10:M21) -> 0 | N24: =SUM(N10:O21) -> 0 | P24: =SUM(P10:Q21) -> 21.5 | R24: =SUM(R10:S21) -> 0 | T24: =SUM(T10:U21) -> 5.5 | V24: =SUM(V10:W21) -> 2 | X24: =SUM(X10:Y21) -> 1.5 | Z24: =SUM(Z10,Z12,Z14,Z16,Z18) -> 0 | AB24: =SUM(AB10,AB12,AB14,AB16,AB18,AB20) -> 0 | AD24: =SUM(AD10:AE21) -> 0 | AF24: =SUM(AF10:AG21) -> 4

Sheet 21-25 Aout
A5: CHANTIER NUMERO | F5: PAVILLON BONENFANT | H5: HOPITAL LAVAL | J5: FONTAINE BLEAU | L5: HOTEL CLASSIQUE | N5: CENTRE DES CONGRES | P5: PAVILLON LACERTE | R5: FIDUCIE ST-DOMINIQUE | T5: PERISCOPE | V5: CHAMONIX | X5: LE NOBLET | Z5: LE BERNIERES | AB5: ST-PAUL | AD5: HOTEL CLARION | AF5: ADM | AJ5: TOTAL
F7: 16-5248 | H7: 16-5307 | J7: 16-5321 | L7: 17-5395 | N7: 17-5406 | P7: 17-5415 | R7: 17-5424 | T7: 17-5430 | V7: 17-5437 | X7: 17-5440 | Z7: 17-5441 | AB7: 17-5451 | AD7: 17-5446
A10: LUNDI | C10: 2017-08-21 | J10: 0.5 | P10: 4 | T10: 1 | X10: 1 | AB10: 1 | AD10: 0.5 | AJ10: =SUM(D10:AI10) -> 8
A12: MARDI | C12: 2017-08-22 | P12: 3.5 | X12: 1 | AB12: 2.5 | AD12: 1 | AJ12: =SUM(D12:AI12) -> 8
A14: MERCREDI | C14: 2017-08-23 | F14: 1 | J14: 0.5 | P14: 4 | X14: 1 | AF14: 2.5 | AJ14: =SUM(D14:AI14) -> 9
A16: JEUDI | C16: 2017-08-24 | F16: 0.5 | P16: 3 | R16: 1 | T16: 1 | V16: 1 | X16: 0.5 | AD16: 1 | AJ16: =SUM(D16:AI16) -> 8
A18: VENDREDI | C18: 2017-08-24 | F18: 1 | H18: 0.5 | P18: 4 | X18: 1 | Z18: 0.5 | AD18: 1 | AJ18: =SUM(D18:AI18) -> 8
A20: SAMEDI
D22: =D5 -> 0 | F22: =F5 -> PAVILLON BONENFANT | H22: =H5 -> HOPITAL LAVAL | J22: =J5 -> FONTAINE BLEAU | L22: =L5 -> HOTEL CLASSIQUE | N22: =N5 -> CENTRE DES CONGRES | P22: =P5 -> PAVILLON LACERTE | R22: =R5 -> FIDUCIE ST-DOMINIQUE | T22: =T5 -> PERISCOPE | V22: =V5 -> CHAMONIX | X22: =X5 -> LE NOBLET | Z22: =Z5 -> LE BERNIERES | AB22: =AB5 -> ST-PAUL | AD22: =AD5 -> HOTEL CLARION | AF22: =AF5 -> ADM | AH22: =AH5 -> 0 | AJ22: =SUM(AJ10,AJ12,AJ14,AJ16,AJ18,AJ20) -> 41
D23: =D7 -> 0 | F23: =F7 -> 16-5248 | H23: =H7 -> 16-5307 | J23: =J7 -> 16-5321 | L23: =L7 -> 17-5395 | N23: =N7 -> 17-5406 | P23: =P7 -> 17-5415 | R23: =R7 -> 17-5424 | T23: =T7 -> 17-5430 | V23: =V7 -> 17-5437 | X23: =X7 -> 17-5440 | Z23: =Z7 -> 17-5441 | AB23: =AB7 -> 17-5451 | AD23: =AD7 -> 17-5446 | AF23: =AF7 -> 0 | AH23: =AH7 -> 0
D24: =SUM(D10:E21) -> 0 | F24: =SUM(F10:G21) -> 2.5 | H24: =SUM(H10:I21) -> 0.5 | J24: =SUM(J10:K21) -> 1 | L24: =SUM(L10:M21) -> 0 | N24: =SUM(N10:O21) -> 0 | P24: =SUM(P10:Q21) -> 18.5 | R24: =SUM(R10:S21) -> 1 | T24: =SUM(T10:U21) -> 2 | V24: =SUM(V10:W21) -> 1 | X24: =SUM(X10:Y21) -> 4.5 | Z24: =SUM(Z10,Z12,Z14,Z16,Z18) -> 0.5 | AB24: =SUM(AB10,AB12,AB14,AB16,AB18,AB20) -> 3.5 | AD24: =SUM(AD10:AE21) -> 3.5 | AF24: =SUM(AF10:AG21) -> 2.5

Sheet 28-1 Sept
A5: CHANTIER NUMERO | F5: PAVILLON BONENFANT | H5: HOPITAL LAVAL | J5: FONTAINE BLEAU | L5: HOTEL CLASSIQUE | N5: CENTRE DES CONGRES | P5: PAVILLON LACERTE | R5: FIDUCIE ST-DOMINIQUE | T5: PERISCOPE | V5: CHAMONIX | X5: LE NOBLET | Z5: HOTEL CLARION | AB5: GRAND JEAN | AD5: ST-PAUL | AF5: ST-AUGUSTIN | AH5: ADM | AJ5: TOTAL
F7: 16-5248 | H7: 16-5307 | J7: 16-5321 | L7: 17-5395 | N7: 17-5406 | P7: 17-5415 | R7: 17-5424 | T7: 17-5430 | V7: 17-5437 | X7: 17-5440 | Z7: 17-5446 | AB7: 17-5448 | AD7: 17-5451 | AF7: 17-5449
A10: LUNDI | C10: 2017-08-28 | P10: 4 | R10: 1 | X10: 1 | AB10: 1 | AD10: 1 | AJ10: =SUM(D10:AI10) -> 8
A12: MARDI | C12: 2017-08-29 | F12: 1 | J12: 0.5 | P12: 1 | R12: 1.5 | T12: 1 | V12: 0.5 | X12: 1 | Z12: 0.5 | AB12: 0.5 | AD12: 0.5 | AJ12: =SUM(D12:AI12) -> 8
A14: MERCREDI | C14: 2017-08-30 | P14: 6 | R14: 1 | T14: 1 | AH14: 0.5 | AJ14: =SUM(D14:AI14) -> 8.5
A16: JEUDI | C16: 2017-08-31 | F16: 1 | P16: 1.5 | R16: 1 | X16: 1 | Z16: 1 | AB16: 1 | AF16: 1.5 | AH16: 1.5 | AJ16: =SUM(D16:AI16) -> 9.5
A18: VENDREDI | C18: 2017-09-01 | H18: 0.5 | P18: 2 | R18: 1 | X18: 1.5 | Z18: 1.5 | AF18: 1.5 | AJ18: =SUM(D18:AI18) -> 8
A20: SAMEDI
D22: =D5 -> 0 | F22: =F5 -> PAVILLON BONENFANT | H22: =H5 -> HOPITAL LAVAL | J22: =J5 -> FONTAINE BLEAU | L22: =L5 -> HOTEL CLASSIQUE | N22: =N5 -> CENTRE DES CONGRES | P22: =P5 -> PAVILLON LACERTE | R22: =R5 -> FIDUCIE ST-DOMINIQUE | T22: =T5 -> PERISCOPE | V22: =V5 -> CHAMONIX | X22: =X5 -> LE NOBLET | Z22: =Z5 -> HOTEL CLARION | AB22: =AB5 -> GRAND JEAN | AD22: =AD5 -> ST-PAUL | AF22: =AF5 -> ST-AUGUSTIN | AH22: =AH5 -> ADM | AJ22: =SUM(AJ10,AJ12,AJ14,AJ16,AJ18,AJ20) -> 42
D23: =D7 -> 0 | F23: =F7 -> 16-5248 | H23: =H7 -> 16-5307 | J23: =J7 -> 16-5321 | L23: =L7 -> 17-5395 | N23: =N7 -> 17-5406 | P23: =P7 -> 17-5415 | R23: =R7 -> 17-5424 | T23: =T7 -> 17-5430 | V23: =V7 -> 17-5437 | X23: =X7 -> 17-5440 | Z23: =Z7 -> 17-5446 | AB23: =AB7 -> 17-5448 | AD23: =AD7 -> 17-5451 | AF23: =AF7 -> 17-5449 | AH23: =AH7 -> 0
D24: =SUM(D10:E21) -> 0 | F24: =SUM(F10:G21) -> 2 | H24: =SUM(H10:I21) -> 0.5 | J24: =SUM(J10:K21) -> 0.5 | L24: =SUM(L10:M21) -> 0 | N24: =SUM(N10:O21) -> 0 | P24: =SUM(P10:Q21) -> 14.5 | R24: =SUM(R10:S21) -> 5.5 | T24: =SUM(T10:U21) -> 2 | V24: =SUM(V10:W21) -> 0.5 | X24: =SUM(X10:Y21) -> 4.5 | Z24: =SUM(Z10,Z12,Z14,Z16,Z18) -> 3 | AB24: =SUM(AB10,AB12,AB14,AB16,AB18,AB20) -> 2.5 | AD24: =SUM(AD10:AE21) -> 1.5 | AF24: =SUM(AF10:AG21) -> 3

Sheet 4-8 Sept
A5: CHANTIER NUMERO | F5: PAVILLON BONENFANT | H5: HOPITAL LAVAL | J5: FONTAINE BLEAU | L5: HOTEL CLASSIQUE | N5: CENTRE DES CONGRES | P5: PAVILLON LACERTE | R5: FIDUCIE ST-DOMINIQUE | T5: PERISCOPE | V5: CHAMONIX | X5: LE NOBLET | Z5: HOTEL CLARION | AB5: GRAND JEAN | AD5: ST-AUGUSTIN | AH5: ADM | AJ5: TOTAL
F7: 16-5248 | H7: 16-5307 | J7: 16-5321 | L7: 17-5395 | N7: 17-5406 | P7: 17-5415 | R7: 17-5424 | T7: 17-5430 | V7: 17-5437 | X7: 17-5440 | Z7: 17-5446 | AB7: 17-5448 | AD7: 17-5449
A10: LUNDI | AJ10: =SUM(D10:AI10) -> 0
A12: MARDI | C12: 2017-09-05 | H12: 1 | L12: 1 | T12: 1.5 | X12: 1.5 | AB12: 1 | AD12: 2 | AJ12: =SUM(D12:AI12) -> 8
A14: MERCREDI | C14: 2017-09-06 | F14: 0.5 | J14: 1 | L14: 0.5 | P14: 0.5 | R14: 1 | V14: 1 | Z14: 1 | AB14: 1 | AH14: 2 | AJ14: =SUM(D14:AI14) -> 8.5
A16: JEUDI | C16: 2017-09-07 | J16: 0.5 | P16: 1.5 | R16: 1.5 | X16: 1 | AD16: 1.5 | AH16: 2 | AJ16: =SUM(D16:AI16) -> 8
A18: VENDREDI | C18: 2017-09-08 | J18: 1 | R18: 1 | AH18: 6 | AJ18: =SUM(D18:AI18) -> 8
A20: SAMEDI
D22: =D5 -> 0 | F22: =F5 -> PAVILLON BONENFANT | H22: =H5 -> HOPITAL LAVAL | J22: =J5 -> FONTAINE BLEAU | L22: =L5 -> HOTEL CLASSIQUE | N22: =N5 -> CENTRE DES CONGRES | P22: =P5 -> PAVILLON LACERTE | R22: =R5 -> FIDUCIE ST-DOMINIQUE | T22: =T5 -> PERISCOPE | V22: =V5 -> CHAMONIX | X22: =X5 -> LE NOBLET | Z22: =Z5 -> HOTEL CLARION | AB22: =AB5 -> GRAND JEAN | AD22: =AD5 -> ST-AUGUSTIN | AF22: =AF5 -> 0 | AH22: =AH5 -> ADM | AJ22: =SUM(AJ10,AJ12,AJ14,AJ16,AJ18,AJ20) -> 32.5
D23: =D7 -> 0 | F23: =F7 -> 16-5248 | H23: =H7 -> 16-5307 | J23: =J7 -> 16-5321 | L23: =L7 -> 17-5395 | N23: =N7 -> 17-5406 | P23: =P7 -> 17-5415 | R23: =R7 -> 17-5424 | T23: =T7 -> 17-5430 | V23: =V7 -> 17-5437 | X23: =X7 -> 17-5440 | Z23: =Z7 -> 17-5446 | AB23: =AB7 -> 17-5448 | AD23: =AD7 -> 17-5449 | AF23: =AF7 -> 0 | AH23: =AH7 -> 0
D24: =SUM(D10:E21) -> 0 | F24: =SUM(F10:G21) -> 0.5 | H24: =SUM(H10:I21) -> 1 | J24: =SUM(J10:K21) -> 2.5 | L24: =SUM(L10:M21) -> 1.5 | N24: =SUM(N10:O21) -> 0 | P24: =SUM(P10:Q21) -> 2 | R24: =SUM(R10:S21) -> 3.5 | T24: =SUM(T10:U21) -> 1.5 | V24: =SUM(V10:W21) -> 1 | X24: =SUM(X10:Y21) -> 2.5 | Z24: =SUM(Z10,Z12,Z14,Z16,Z18) -> 1 | AB24: =SUM(AB10,AB12,AB14,AB16,AB18,AB20) -> 2 | AD24: =SUM(AD10:AE21) -> 3.5 | AF24: =SUM(AF10:AG21) -> 0

Sheet 11-15 Sept
A5: CHANTIER NUMERO | F5: PAVILLON BONENFANT | H5: HOPITAL LAVAL | J5: FONTAINE BLEAU | L5: HOTEL CLASSIQUE | N5: CENTRE DES CONGRES | P5: FIDUCIE ST-DOMINIQUE | R5: PERISCOPE | T5: CHAMONIX | V5: LE NOBLET | X5: HOTEL CLARION | Z5: LAUDANCE | AB5: GRAND JEAN | AD5: ST-AUGUSTIN | AH5: ADM | AJ5: TOTAL
F7: 16-5248 | H7: 16-5307 | J7: 16-5321 | L7: 17-5395 | N7: 17-5406 | P7: 17-5424 | R7: 17-5430 | T7: 17-5437 | V7: 17-5440 | X7: 17-5446 | Z7: 17-5447 | AB7: 17-5448 | AD7: 17-5449
A10: LUNDI | C10: 2017-09-11 | F10: 0.5 | J10: 1.5 | P10: 1 | R10: 1.5 | V10: 1 | X10: 0.5 | AB10: 1 | AH10: 1 | AJ10: =SUM(D10:AI10) -> 8
A12: MARDI | C12: 2017-09-12 | J12: 1 | P12: 1 | R12: 1.5 | T12: 1 | V12: 1 | Z12: 0.5 | AB12: 0.5 | AD12: 1.5 | AJ12: =SUM(D12:AI12) -> 8
A14: MERCREDI | C14: 2017-09-13 | H14: 1 | L14: 1 | R14: 2 | V14: 1 | X14: 0.5 | AB14: 1 | AD14: 1.5 | AJ14: =SUM(D14:AI14) -> 8
A16: JEUDI | C16: 2017-09-14 | F16: 1 | V16: 1 | X16: 1 | Z16: 1 | AB16: 1 | AH16: 3 | AJ16: =SUM(D16:AI16) -> 8
A18: VENDREDI | C18: 2017-09-15 | L18: 1 | P18: 1 | R18: 1 | V18: 1 | AB18: 0.5 | AD18: 1.5 | AH18: 2 | AJ18: =SUM(D18:AI18) -> 8
A20: SAMEDI
D22: =D5 -> 0 | F22: =F5 -> PAVILLON BONENFANT | H22: =H5 -> HOPITAL LAVAL | J22: =J5 -> FONTAINE BLEAU | L22: =L5 -> HOTEL CLASSIQUE | N22: =N5 -> CENTRE DES CONGRES | P22: =P5 -> FIDUCIE ST-DOMINIQUE | R22: =R5 -> PERISCOPE | T22: =T5 -> CHAMONIX | V22: =V5 -> LE NOBLET | X22: =X5 -> HOTEL CLARION | Z22: =Z5 -> LAUDANCE | AB22: =AB5 -> GRAND JEAN | AD22: =AD5 -> ST-AUGUSTIN | AF22: =AF5 -> 0 | AH22: =AH5 -> ADM | AJ22: =SUM(AJ10,AJ12,AJ14,AJ16,AJ18,AJ20) -> 40
D23: =D7 -> 0 | F23: =F7 -> 16-5248 | H23: =H7 -> 16-5307 | J23: =J7 -> 16-5321 | L23: =L7 -> 17-5395 | N23: =N7 -> 17-5406 | P23: =P7 -> 17-5424 | R23: =R7 -> 17-5430 | T23: =T7 -> 17-5437 | V23: =V7 -> 17-5440 | X23: =X7 -> 17-5446 | Z23: =Z7 -> 17-5447 | AB23: =AB7 -> 17-5448 | AD23: =AD7 -> 17-5449 | AF23: =AF7 -> 0 | AH23: =AH7 -> 0
D24: =SUM(D10:E21) -> 0 | F24: =SUM(F10:G21) -> 1.5 | H24: =SUM(H10:I21) -> 1 | J24: =SUM(J10:K21) -> 2.5 | L24: =SUM(L10:M21) -> 2 | N24: =SUM(N10:O21) -> 0 | P24: =SUM(P10:Q21) -> 3 | R24: =SUM(R10:S21) -> 6 | T24: =SUM(T10:U21) -> 1 | V24: =SUM(V10:W21) -> 5 | X24: =SUM(X10:Y21) -> 2 | Z24: =SUM(Z10,Z12,Z14,Z16,Z18) -> 1.5 | AB24: =SUM(AB10,AB12,AB14,AB16,AB18,AB20) -> 4 | AD24: =SUM(AD10:AE21) -> 4.5 | AF24: =SUM(AF10:AG21) -> 0

Sheet 18-22 Sept
A5: CHANTIER NUMERO | D5: PAVILLON BONENFANT | F5: HOPITAL LAVAL | H5: HOTEL CLASSIQUE | J5: CENTRE DES CONGRES | L5: FIDUCIE ST-DOMINIQUE | N5: PERISCOPE | P5: CHAMONIX | R5: LE NOBLET | T5: PLACE CHARLESBOURG | V5: LAUDANCE | X5: GRAND JEAN | Z5: ST-AUGUSTIN | AB5: JARDINS DU PARC | AD5: RENAISSANCE 2 | AF5: ST LAURENT | AH5: ADM | AJ5: TOTAL
D7: 16-5248 | F7: 16-5307 | H7: 17-5395 | J7: 17-5406 | L7: 17-5424 | N7: 17-5430 | P7: 17-5437 | R7: 17-5440 | T7: 17-5444 | V7: 17-5447 | X7: 17-5448 | Z7: 17-5449 | AB7: 17-5454 | AD7: 17-5455 | AF7: 17-5466
A10: LUNDI | C10: 2017-09-18 | D10: 1 | L10: 1 | N10: 1 | R10: 1 | T10: 1 | X10: 0.5 | AD10: 2.5 | AJ10: =SUM(D10:AI10) -> 8
A12: MARDI | C12: 2017-09-19 | L12: 1.5 | R12: 1 | T12: 1 | AD12: 3 | AF12: 1 | AH12: 1 | AJ12: =SUM(D12:AI12) -> 8.5
A14: MERCREDI | C14: 2017-09-20 | D14: 0.5 | R14: 1 | X14: 1 | AD14: 1.5 | AF14: 1.5 | AH14: 3 | AJ14: =SUM(D14:AI14) -> 8.5
A16: JEUDI | C16: 2017-09-21 | P16: 1 | T16: 1.5 | X16: 1 | Z16: 2.5 | AB16: 1.5 | AF16: 1 | AJ16: =SUM(D16:AI16) -> 8.5
A18: VENDREDI | C18: 2017-09-22 | D18: 1 | L18: 1.5 | N18: 1 | R18: 1 | T18: 4 | AJ18: =SUM(D18:AI18) -> 8.5
A20: SAMEDI
D22: =D5 -> PAVILLON BONENFANT | F22: =F5 -> HOPITAL LAVAL | H22: =H5 -> HOTEL CLASSIQUE | J22: =J5 -> CENTRE DES CONGRES | L22: =L5 -> FIDUCIE ST-DOMINIQUE | N22: =N5 -> PERISCOPE | P22: =P5 -> CHAMONIX | R22: =R5 -> LE NOBLET | T22: =T5 -> PLACE CHARLESBOURG | V22: =V5 -> LAUDANCE | X22: =X5 -> GRAND JEAN | Z22: =Z5 -> ST-AUGUSTIN | AB22: =AB5 -> JARDINS DU PARC | AD22: =AD5 -> RENAISSANCE 2 | AF22: =AF5 -> ST LAURENT | AH22: =AH5 -> ADM | AJ22: =SUM(AJ10,AJ12,AJ14,AJ16,AJ18,AJ20) -> 42
D23: =D7 -> 16-5248 | F23: =F7 -> 16-5307 | H23: =H7 -> 17-5395 | J23: =J7 -> 17-5406 | L23: =L7 -> 17-5424 | N23: =N7 -> 17-5430 | P23: =P7 -> 17-5437 | R23: =R7 -> 17-5440 | T23: =T7 -> 17-5444 | V23: =V7 -> 17-5447 | X23: =X7 -> 17-5448 | Z23: =Z7 -> 17-5449 | AB23: =AB7 -> 17-5454 | AD23: =AD7 -> 17-5455 | AF23: =AF7 -> 17-5466 | AH23: =AH7 -> 0
D24: =SUM(D10:E21) -> 2.5 | F24: =SUM(F10:G21) -> 0 | H24: =SUM(H10:I21) -> 0 | J24: =SUM(J10:K21) -> 0 | L24: =SUM(L10:M21) -> 4 | N24: =SUM(N10:O21) -> 2 | P24: =SUM(P10:Q21) -> 1 | R24: =SUM(R10:S21) -> 4 | T24: =SUM(T10:U21) -> 7.5 | V24: =SUM(V10:W21) -> 0 | X24: =SUM(X10:Y21) -> 2.5 | Z24: =SUM(Z10,Z12,Z14,Z16,Z18) -> 2.5 | AB24: =SUM(AB10,AB12,AB14,AB16,AB18,AB20) -> 1.5 | AD24: =SUM(AD10:AE21) -> 7 | AF24: =SUM(AF10:AG21) -> 3.5

Sheet 25-29 Sept
A5: CHANTIER NUMERO | D5: PAVILLON BONENFANT | F5: HOPITAL LAVAL | H5: FIDUCIE ST-DOMINIQUE | J5: PERISCOPE | L5: CHAMONIX | N5: LE NOBLET | P5: PLACE CHARLESBOURG | R5: LAUDANCE | T5: GRAND JEAN | V5: ST-AUGUSTIN | X5: LE BERNIERES | Z5: RENAISSANCE 2 | AB5: LES FACADES DE L'ILE | AD5: ST LAURENT | AH5: ADM | AJ5: TOTAL
D7: 16-5248 | F7: 16-5307 | H7: 17-5424 | J7: 17-5430 | L7: 17-5437 | N7: 17-5440 | P7: 17-5444 | R7: 17-5447 | T7: 17-5448 | V7: 17-5449 | X7: 17-5453 | Z7: 17-5455 | AB7: 17-5460 | AD7: 17-5466
A10: LUNDI | C10: 2017-09-25 | H10: 1.5 | N10: 1 | P10: 1 | T10: 0.5 | V10: 3 | AD10: 1 | AJ10: =SUM(D10:AI10) -> 8
A12: MARDI | C12: 2017-09-26 | D12: 0.5 | H12: 1.5 | J12: 0.5 | N12: 1 | AB12: 1 | AD12: 2 | AH12: 1.5 | AJ12: =SUM(D12:AI12) -> 8
A14: MERCREDI | C14: 2017-09-27 | H14: 1 | N14: 1 | X14: 1 | AD14: 1 | AH14: 5 | AJ14: =SUM(D14:AI14) -> 9
A16: JEUDI | C16: 2017-09-28 | H16: 1 | J16: 1 | N16: 1 | T16: 0.5 | X16: 1.5 | AD16: 1 | AH16: 2.5 | AJ16: =SUM(D16:AI16) -> 8.5
A18: VENDREDI | C18: 2017-09-29 | L18: 1 | X18: 1 | AB18: 2 | AD18: 1.5 | AH18: 2.5 | AJ18: =SUM(D18:AI18) -> 8
A20: SAMEDI
D22: =D5 -> PAVILLON BONENFANT | F22: =F5 -> HOPITAL LAVAL | H22: =H5 -> FIDUCIE ST-DOMINIQUE | J22: =J5 -> PERISCOPE | L22: =L5 -> CHAMONIX | N22: =N5 -> LE NOBLET | P22: =P5 -> PLACE CHARLESBOURG | R22: =R5 -> LAUDANCE | T22: =T5 -> GRAND JEAN | V22: =V5 -> ST-AUGUSTIN | X22: =X5 -> LE BERNIERES | Z22: =Z5 -> RENAISSANCE 2 | AB22: =AB5 -> LES FACADES DE L'ILE | AD22: =AD5 -> ST LAURENT | AF22: =AF5 -> 0 | AH22: =AH5 -> ADM | AJ22: =SUM(AJ10,AJ12,AJ14,AJ16,AJ18,AJ20) -> 41.5
D23: =D7 -> 16-5248 | F23: =F7 -> 16-5307 | H23: =H7 -> 17-5424 | J23: =J7 -> 17-5430 | L23: =L7 -> 17-5437 | N23: =N7 -> 17-5440 | P23: =P7 -> 17-5444 | R23: =R7 -> 17-5447 | T23: =T7 -> 17-5448 | V23: =V7 -> 17-5449 | X23: =X7 -> 17-5453 | Z23: =Z7 -> 17-5455 | AB23: =AB7 -> 17-5460 | AD23: =AD7 -> 17-5466 | AF23: =AF7 -> 0 | AH23: =AH7 -> 0
D24: =SUM(D10:E21) -> 0.5 | F24: =SUM(F10:G21) -> 0 | H24: =SUM(H10:I21) -> 5 | J24: =SUM(J10:K21) -> 1.5 | L24: =SUM(L10:M21) -> 1 | N24: =SUM(N10:O21) -> 4 | P24: =SUM(P10:Q21) -> 1 | R24: =SUM(R10:S21) -> 0 | T24: =SUM(T10:U21) -> 1 | V24: =SUM(V10:W21) -> 3 | X24: =SUM(X10:Y21) -> 3.5 | Z24: =SUM(Z10,Z12,Z14,Z16,Z18) -> 0 | AB24: =SUM(AB10,AB12,AB14,AB16,AB18,AB20) -> 3 | AD24: =SUM(AD10:AE21) -> 6.5 | AF24: =SUM(AF10:AG21) -> 0

Sheet 2-6 Oct
A5: CHANTIER NUMERO | D5: PAVILLON BONENFANT | F5: HOPITAL LAVAL | H5: PERISCOPE | J5: CHAMONIX | L5: LE NOBLET | N5: LAUDANCE | P5: GRAND JEAN | R5: ST-AUGUSTIN | T5: LE BERNIERES | V5: RENAISSANCE 2 | X5: LES FACADES DE L'ILE | Z5: MÉRICI | AB5: VALCARTIER | AD5: ST LAURENT | AH5: ADM | AJ5: TOTAL
D7: 16-5248 | F7: 16-5307 | H7: 17-5430 | J7: 17-5437 | L7: 17-5440 | N7: 17-5447 | P7: 17-5448 | R7: 17-5449 | T7: 17-5453 | V7: 17-5455 | X7: 17-5460 | Z7: 17-5463 | AB7: 17-5465 | AD7: 17-5466
A10: LUNDI | C10: 2017-10-02 | H10: 0.5 | T10: 0.5 | X10: 4 | Z10: 3 | AD10: 0.5 | AJ10: =SUM(D10:AI10) -> 8.5
A12: MARDI | C12: 2017-10-03 | P12: 1 | T12: 0.5 | X12: 4.5 | Z12: 1.5 | AD12: 1 | AJ12: =SUM(D12:AI12) -> 8.5
A14: MERCREDI | C14: 2017-10-04 | F14: 1 | L14: 1 | X14: 1.5 | Z14: 1 | AB14: 1.5 | AD14: 1 | AH14: 3 | AJ14: =SUM(D14:AI14) -> 10
A16: JEUDI | C16: 2017-10-05 | J16: 1 | T16: 1 | X16: 2 | AD16: 1 | AH16: 3 | AJ16: =SUM(D16:AI16) -> 8
A18: VENDREDI | C18: 2017-10-06 | H18: 0.5 | L18: 1 | N18: 1 | R18: 1.5 | V18: 0.5 | X18: 1.5 | Z18: 1 | AD18: 1 | AJ18: =SUM(D18:AI18) -> 8
A20: SAMEDI
D22: =D5 -> PAVILLON BONENFANT | F22: =F5 -> HOPITAL LAVAL | H22: =H5 -> PERISCOPE | J22: =J5 -> CHAMONIX | L22: =L5 -> LE NOBLET | N22: =N5 -> LAUDANCE | P22: =P5 -> GRAND JEAN | R22: =R5 -> ST-AUGUSTIN | T22: =T5 -> LE BERNIERES | V22: =V5 -> RENAISSANCE 2 | X22: =X5 -> LES FACADES DE L'ILE | Z22: =Z5 -> MÉRICI | AB22: =AB5 -> VALCARTIER | AD22: =AD5 -> ST LAURENT | AF22: =AF5 -> 0 | AH22: =AH5 -> ADM | AJ22: =SUM(AJ10,AJ12,AJ14,AJ16,AJ18,AJ20) -> 43
D23: =D7 -> 16-5248 | F23: =F7 -> 16-5307 | H23: =H7 -> 17-5430 | J23: =J7 -> 17-5437 | L23: =L7 -> 17-5440 | N23: =N7 -> 17-5447 | P23: =P7 -> 17-5448 | R23: =R7 -> 17-5449 | T23: =T7 -> 17-5453 | V23: =V7 -> 17-5455 | X23: =X7 -> 17-5460 | Z23: =Z7 -> 17-5463 | AB23: =AB7 -> 17-5465 | AD23: =AD7 -> 17-5466 | AF23: =AF7 -> 0 | AH23: =AH7 -> 0
D24: =SUM(D10:E21) -> 0 | F24: =SUM(F10:G21) -> 1 | H24: =SUM(H10:I21) -> 1 | J24: =SUM(J10:K21) -> 1 | L24: =SUM(L10:M21) -> 2 | N24: =SUM(N10:O21) -> 1 | P24: =SUM(P10:Q21) -> 1 | R24: =SUM(R10:S21) -> 1.5 | T24: =SUM(T10:U21) -> 2 | V24: =SUM(V10:W21) -> 0.5 | X24: =SUM(X10:Y21) -> 13.5 | Z24: =SUM(Z10,Z12,Z14,Z16,Z18) -> 6.5 | AB24: =SUM(AB10,AB12,AB14,AB16,AB18,AB20) -> 1.5 | AD24: =SUM(AD10:AE21) -> 4.5 | AF24: =SUM(AF10:AG21) -> 0

Sheet 9-13 Oct
A5: CHANTIER NUMERO | D5: PAVILLON BONENFANT | F5: HOPITAL LAVAL | H5: PERISCOPE | J5: CHAMONIX | L5: LE NOBLET | N5: LAUDANCE | P5: LE BERNIERES | R5: RENAISSANCE 2 | T5: LES FACADES DE L'ILE | V5: MÉRICI | X5: VALCARTIER | Z5: ST LAURENT | AB5: PÈRE MARQUETTE | AH5: ADM | AJ5: TOTAL
D7: 16-5248 | F7: 16-5307 | H7: 17-5430 | J7: 17-5437 | L7: 17-5440 | N7: 17-5447 | P7: 17-5453 | R7: 17-5455 | T7: 17-5460 | V7: 17-5463 | X7: 17-5465 | Z7: 17-5466 | AB7: 16-5259
A10: LUNDI | AJ10: =SUM(D10:AI10) -> 0
A12: MARDI | C12: 2017-10-10 | J12: 1 | N12: 1 | P12: 1 | T12: 1.5 | V12: 0.5 | Z12: 1 | AB12: 1 | AH12: 1.5 | AJ12: =SUM(D12:AI12) -> 8.5
A14: MERCREDI | C14: 2017-10-11 | H14: 1 | L14: 1 | N14: 1 | T14: 3 | V14: 1 | Z14: 1 | AH14: 1 | AJ14: =SUM(D14:AI14) -> 9
A16: JEUDI | C16: 2017-10-12 | H16: 1 | N16: 1 | R16: 1 | T16: 1 | Z16: 1 | AB16: 2 | AH16: 1.5 | AJ16: =SUM(D16:AI16) -> 8.5
A18: VENDREDI | C18: 2017-10-13 | N18: 1 | T18: 5.5 | V18: 1 | Z18: 0.5 | AJ18: =SUM(D18:AI18) -> 8
A20: SAMEDI
D22: =D5 -> PAVILLON BONENFANT | F22: =F5 -> HOPITAL LAVAL | H22: =H5 -> PERISCOPE | J22: =J5 -> CHAMONIX | L22: =L5 -> LE NOBLET | N22: =N5 -> LAUDANCE | P22: =P5 -> LE BERNIERES | R22: =R5 -> RENAISSANCE 2 | T22: =T5 -> LES FACADES DE L'ILE | V22: =V5 -> MÉRICI | X22: =X5 -> VALCARTIER | Z22: =Z5 -> ST LAURENT | AB22: =AB5 -> PÈRE MARQUETTE | AD22: =AD5 -> 0 | AF22: =AF5 -> 0 | AH22: =AH5 -> ADM | AJ22: =SUM(AJ10,AJ12,AJ14,AJ16,AJ18,AJ20) -> 34
D23: =D7 -> 16-5248 | F23: =F7 -> 16-5307 | H23: =H7 -> 17-5430 | J23: =J7 -> 17-5437 | L23: =L7 -> 17-5440 | N23: =N7 -> 17-5447 | P23: =P7 -> 17-5453 | R23: =R7 -> 17-5455 | T23: =T7 -> 17-5460 | V23: =V7 -> 17-5463 | X23: =X7 -> 17-5465 | Z23: =Z7 -> 17-5466 | AB23: =AB7 -> 16-5259 | AD23: =AD7 -> 0 | AF23: =AF7 -> 0 | AH23: =AH7 -> 0
D24: =SUM(D10:E21) -> 0 | F24: =SUM(F10:G21) -> 0 | H24: =SUM(H10:I21) -> 2 | J24: =SUM(J10:K21) -> 1 | L24: =SUM(L10:M21) -> 1 | N24: =SUM(N10:O21) -> 4 | P24: =SUM(P10:Q21) -> 1 | R24: =SUM(R10:S21) -> 1 | T24: =SUM(T10:U21) -> 11 | V24: =SUM(V10:W21) -> 2.5 | X24: =SUM(X10:Y21) -> 0 | Z24: =SUM(Z10,Z12,Z14,Z16,Z18) -> 3.5 | AB24: =SUM(AB10,AB12,AB14,AB16,AB18,AB20) -> 3 | AD24: =SUM(AD10:AE21) -> 0 | AF24: =SUM(AF10:AG21) -> 0

Sheet 16-20 Oct
A5: CHANTIER NUMERO | D5: PAVILLON BONENFANT | F5: PÈRE MARQUETTE | H5: HOPITAL LAVAL | J5: PERISCOPE | L5: CHAMONIX | N5: LE NOBLET | P5: LAUDANCE | R5: MÉRICI | T5: VALCARTIER | V5: ST LAURENT | X5: CENTRE DES CONGRES | AH5: ADM | AJ5: TOTAL
D7: 16-5248 | F7: 16-5259 | H7: 16-5307 | J7: 17-5430 | L7: 17-5437 | N7: 17-5440 | P7: 17-5447 | R7: 17-5463 | T7: 17-5465 | V7: 17-5466 | X7: 17-5406
A10: LUNDI | C10: 2017-10-16 | D10: 1 | F10: 1 | L10: 1 | N10: 1.5 | P10: 1 | R10: 1 | V10: 1.5 | X10: 6 | AJ10: =SUM(D10:AI10) -> 14
A12: MARDI | C12: 2017-10-17 | F12: 2 | J12: 1.5 | V12: 1 | X12: 3.5 | AH12: 2.5 | AJ12: =SUM(D12:AI12) -> 10.5
A14: MERCREDI | C14: 2017-10-18 | D14: 1 | F14: 1 | J14: 1 | L14: 1 | P14: 1 | R14: 1 | V14: 1.5 | X14: 1 | AH14: 0.5 | AJ14: =SUM(D14:AI14) -> 9
A16: JEUDI | C16: 2017-10-19 | D16: 1 | F16: 1 | H16: 1 | J16: 2 | N16: 1 | R16: 1 | V16: 1 | AH16: 1 | AJ16: =SUM(D16:AI16) -> 9
A18: VENDREDI | C18: 2017-10-20 | F18: 0.5 | J18: 2 | R18: 1 | T18: 1.5 | V18: 1 | AH18: 2 | AJ18: =SUM(D18:AI18) -> 8
A20: SAMEDI
D22: =D5 -> PAVILLON BONENFANT | F22: =F5 -> PÈRE MARQUETTE | H22: =H5 -> HOPITAL LAVAL | J22: =J5 -> PERISCOPE | L22: =L5 -> CHAMONIX | N22: =N5 -> LE NOBLET | P22: =P5 -> LAUDANCE | R22: =R5 -> MÉRICI | T22: =T5 -> VALCARTIER | V22: =V5 -> ST LAURENT | X22: =X5 -> CENTRE DES CONGRES | Z22: =Z5 -> 0 | AB22: =AB5 -> 0 | AD22: =AD5 -> 0 | AF22: =AF5 -> 0 | AH22: =AH5 -> ADM | AJ22: =SUM(AJ10,AJ12,AJ14,AJ16,AJ18,AJ20) -> 50.5
D23: =D7 -> 16-5248 | F23: =F7 -> 16-5259 | H23: =H7 -> 16-5307 | J23: =J7 -> 17-5430 | L23: =L7 -> 17-5437 | N23: =N7 -> 17-5440 | P23: =P7 -> 17-5447 | R23: =R7 -> 17-5463 | T23: =T7 -> 17-5465 | V23: =V7 -> 17-5466 | X23: =X7 -> 17-5406 | Z23: =Z7 -> 0 | AB23: =AB7 -> 0 | AD23: =AD7 -> 0 | AF23: =AF7 -> 0 | AH23: =AH7 -> 0
D24: =SUM(D10:E21) -> 3 | F24: =SUM(F10:G21) -> 5.5 | H24: =SUM(H10:I21) -> 1 | J24: =SUM(J10:K21) -> 6.5 | L24: =SUM(L10:M21) -> 2 | N24: =SUM(N10:O21) -> 2.5 | P24: =SUM(P10:Q21) -> 2 | R24: =SUM(R10:S21) -> 4 | T24: =SUM(T10:U21) -> 1.5 | V24: =SUM(V10:W21) -> 6 | X24: =SUM(X10:Y21) -> 10.5 | Z24: =SUM(Z10,Z12,Z14,Z16,Z18) -> 0 | AB24: =SUM(AB10,AB12,AB14,AB16,AB18,AB20) -> 0 | AD24: =SUM(AD10:AE21) -> 0 | AF24: =SUM(AF10:AG21) -> 0

Sheet 23-27 Oct
A5: CHANTIER NUMERO | D5: PAVILLON BONENFANT | F5: PÈRE MARQUETTE | H5: HOPITAL LAVAL | J5: PERISCOPE | L5: CHAMONIX | N5: LE NOBLET | P5: LAUDANCE | R5: MÉRICI | T5: ST LAURENT | V5: CENTRE DES CONGRES | X5: MARLY | AH5: ADM | AJ5: TOTAL
D7: 16-5248 | F7: 16-5259 | H7: 16-5307 | J7: 17-5430 | L7: 17-5437 | N7: 17-5440 | P7: 17-5447 | R7: 17-5463 | T7: 17-5466 | V7: 17-5406 | X7: 17-5490
A10: LUNDI | C10: 2017-10-23 | D10: 0.5 | F10: 2 | J10: 1 | R10: 1 | T10: 1 | AH10: 2.5 | AJ10: =SUM(D10:AI10) -> 8
A12: MARDI | C12: 2017-10-24 | F12: 1.5 | J12: 1.5 | N12: 0.5 | R12: 1.5 | AH12: 3.5 | AJ12: =SUM(D12:AI12) -> 8.5
A14: MERCREDI | C14: 2017-10-25 | D14: 1 | F14: 1.5 | J14: 2.5 | L14: 1 | R14: 1 | T14: 0.5 | AH14: 0.5 | AJ14: =SUM(D14:AI14) -> 8
A16: JEUDI | C16: 2017-10-26 | F16: 1 | J16: 2 | T16: 0.5 | X16: 2.5 | AH16: 2 | AJ16: =SUM(D16:AI16) -> 8
A18: VENDREDI | C18: 2017-10-27 | F18: 1.5 | H18: 1 | J18: 1.5 | T18: 1 | AH18: 3 | AJ18: =SUM(D18:AI18) -> 8
A20: SAMEDI
D22: =D5 -> PAVILLON BONENFANT | F22: =F5 -> PÈRE MARQUETTE | H22: =H5 -> HOPITAL LAVAL | J22: =J5 -> PERISCOPE | L22: =L5 -> CHAMONIX | N22: =N5 -> LE NOBLET | P22: =P5 -> LAUDANCE | R22: =R5 -> MÉRICI | T22: =T5 -> ST LAURENT | V22: =V5 -> CENTRE DES CONGRES | X22: =X5 -> MARLY | Z22: =Z5 -> 0 | AB22: =AB5 -> 0 | AD22: =AD5 -> 0 | AF22: =AF5 -> 0 | AH22: =AH5 -> ADM | AJ22: =SUM(AJ10,AJ12,AJ14,AJ16,AJ18,AJ20) -> 40.5
D23: =D7 -> 16-5248 | F23: =F7 -> 16-5259 | H23: =H7 -> 16-5307 | J23: =J7 -> 17-5430 | L23: =L7 -> 17-5437 | N23: =N7 -> 17-5440 | P23: =P7 -> 17-5447 | R23: =R7 -> 17-5463 | T23: =T7 -> 17-5466 | V23: =V7 -> 17-5406 | X23: =X7 -> 17-5490 | Z23: =Z7 -> 0 | AB23: =AB7 -> 0 | AD23: =AD7 -> 0 | AF23: =AF7 -> 0 | AH23: =AH7 -> 0
D24: =SUM(D10:E21) -> 1.5 | F24: =SUM(F10:G21) -> 7.5 | H24: =SUM(H10:I21) -> 1 | J24: =SUM(J10:K21) -> 8.5 | L24: =SUM(L10:M21) -> 1 | N24: =SUM(N10:O21) -> 0.5 | P24: =SUM(P10:Q21) -> 0 | R24: =SUM(R10:S21) -> 3.5 | T24: =SUM(T10:U21) -> 3 | V24: =SUM(V10:W21) -> 0 | X24: =SUM(X10:Y21) -> 2.5 | Z24: =SUM(Z10,Z12,Z14,Z16,Z18) -> 0 | AB24: =SUM(AB10,AB12,AB14,AB16,AB18,AB20) -> 0 | AD24: =SUM(AD10:AE21) -> 0 | AF24: =SUM(AF10:AG21) -> 0

Sheet 30-03 Oct
A5: CHANTIER NUMERO | D5: PAVILLON BONENFANT | F5: PÈRE MARQUETTE | H5: HOPITAL LAVAL | J5: PERISCOPE | L5: CHAMONIX | N5: LE NOBLET | P5: MÉRICI | R5: MARLY | T5: TB4 | V5: DOOLY'S | AH5: ADM | AJ5: TOTAL
D7: 16-5248 | F7: 16-5259 | H7: 16-5307 | J7: 17-5430 | L7: 17-5437 | N7: 17-5440 | P7: 17-5463 | R7: 17-5490 | T7: 17-5496 | V7: 17-5497
A10: LUNDI | C10: 2017-10-30 | F10: 1.5 | J10: 1 | AH10: 5.5 | AJ10: =SUM(D10:AI10) -> 8
A12: MARDI | C12: 2017-10-31 | L12: 1 | R12: 1 | T12: 2 | V12: 1 | AH12: 4.5 | AJ12: =SUM(D12:AI12) -> 9.5
A14: MERCREDI | C14: 2017-11-01 | F14: 1 | J14: 1.5 | P14: 3.5 | V14: 1 | AH14: 1.5 | AJ14: =SUM(D14:AI14) -> 8.5
A16: JEUDI | C16: 2017-11-02 | J16: 1.5 | N16: 3 | P16: 2 | AH16: 1.5 | AJ16: =SUM(D16:AI16) -> 8
A18: VENDREDI | C18: 2017-11-03 | J18: 1.5 | P18: 1 | T18: 3 | AH18: 2.5 | AJ18: =SUM(D18:AI18) -> 8
A20: SAMEDI
D22: =D5 -> PAVILLON BONENFANT | F22: =F5 -> PÈRE MARQUETTE | H22: =H5 -> HOPITAL LAVAL | J22: =J5 -> PERISCOPE | L22: =L5 -> CHAMONIX | N22: =N5 -> LE NOBLET | P22: =P5 -> MÉRICI | R22: =R5 -> MARLY | T22: =T5 -> TB4 | V22: =V5 -> DOOLY'S | X22: =X5 -> 0 | Z22: =Z5 -> 0 | AB22: =AB5 -> 0 | AD22: =AD5 -> 0 | AF22: =AF5 -> 0 | AH22: =AH5 -> ADM | AJ22: =SUM(AJ10,AJ12,AJ14,AJ16,AJ18,AJ20) -> 42
D23: =D7 -> 16-5248 | F23: =F7 -> 16-5259 | H23: =H7 -> 16-5307 | J23: =J7 -> 17-5430 | L23: =L7 -> 17-5437 | N23: =N7 -> 17-5440 | P23: =P7 -> 17-5463 | R23: =R7 -> 17-5490 | T23: =T7 -> 17-5496 | V23: =V7 -> 17-5497 | X23: =X7 -> 0 | Z23: =Z7 -> 0 | AB23: =AB7 -> 0 | AD23: =AD7 -> 0 | AF23: =AF7 -> 0 | AH23: =AH7 -> 0
D24: =SUM(D10:E21) -> 0 | F24: =SUM(F10:G21) -> 2.5 | H24: =SUM(H10:I21) -> 0 | J24: =SUM(J10:K21) -> 5.5 | L24: =SUM(L10:M21) -> 1 | N24: =SUM(N10:O21) -> 3 | P24: =SUM(P10:Q21) -> 6.5 | R24: =SUM(R10:S21) -> 1 | T24: =SUM(T10:U21) -> 5 | V24: =SUM(V10:W21) -> 2 | X24: =SUM(X10:Y21) -> 0 | Z24: =SUM(Z10,Z12,Z14,Z16,Z18) -> 0 | AB24: =SUM(AB10,AB12,AB14,AB16,AB18,AB20) -> 0 | AD24: =SUM(AD10:AE21) -> 0 | AF24: =SUM(AF10:AG21) -> 0

Sheet 6-10 Nov
A5: CHANTIER NUMERO | F5: PÈRE MARQUETTE | H5: HOPITAL LAVAL | J5: PERISCOPE | L5: CHAMONIX | N5: LE NOBLET | P5: MÉRICI | R5: MARLY | T5: TB4 | V5: DOOLY'S | X5: HOTEL CLASSIQUE | Z5: LABERGE | AF5: ADM | AH5: TOTAL
F7: 16-5259 | H7: 16-5307 | J7: 17-5430 | L7: 17-5437 | N7: 17-5440 | P7: 17-5463 | R7: 17-5490 | T7: 17-5496 | V7: 17-5497 | X7: 17-5501
A10: LUNDI | C10: 2017-11-06 | J10: 1 | P10: 1.5 | R10: 0.5 | X10: 3 | Z10: 1 | AF10: 1 | AH10: =SUM(D10:AG10) -> 8
A12: MARDI | C12: 2017-11-07 | P12: 0.5 | T12: 6.5 | V12: 2 | AH12: =SUM(D12:AG12) -> 9
A14: MERCREDI | C14: 2017-11-08 | J14: 1 | P14: 1 | T14: 4.5 | X14: 1.5 | AF14: 1 | AH14: =SUM(D14:AG14) -> 9
A16: JEUDI | C16: 2017-11-09 | F16: 0.5 | H16: 0.5 | J16: 1 | R16: 1 | X16: 3 | AF16: 2 | AH16: =SUM(D16:AG16) -> 8
A18: VENDREDI | C18: 2017-11-10 | AH18: =SUM(D18:AG18) -> 0
A20: SAMEDI
D22: =D5 -> 0 | F22: =F5 -> PÈRE MARQUETTE | H22: =H5 -> HOPITAL LAVAL | J22: =J5 -> PERISCOPE | L22: =L5 -> CHAMONIX | N22: =N5 -> LE NOBLET | P22: =P5 -> MÉRICI | R22: =R5 -> MARLY | T22: =T5 -> TB4 | V22: =V5 -> DOOLY'S | X22: =X5 -> HOTEL CLASSIQUE | Z22: =Z5 -> LABERGE | AB22: =AB5 -> 0 | AD22: =AD5 -> 0 | AF22: =AF5 -> ADM | AH22: =SUM(AH10,AH12,AH14,AH16,AH18,AH20) -> 34
D23: =D7 -> 0 | F23: =F7 -> 16-5259 | H23: =H7 -> 16-5307 | J23: =J7 -> 17-5430 | L23: =L7 -> 17-5437 | N23: =N7 -> 17-5440 | P23: =P7 -> 17-5463 | R23: =R7 -> 17-5490 | T23: =T7 -> 17-5496 | V23: =V7 -> 17-5497 | X23: =X7 -> 17-5501 | Z23: =Z7 -> 0 | AB23: =AB7 -> 0 | AD23: =AD7 -> 0 | AF23: =AF7 -> 0
D24: =SUM(D10:E21) -> 0 | F24: =SUM(F10:G21) -> 0.5 | H24: =SUM(H10:I21) -> 0.5 | J24: =SUM(J10:K21) -> 3 | L24: =SUM(L10:M21) -> 0 | N24: =SUM(N10:O21) -> 0 | P24: =SUM(P10:Q21) -> 3 | R24: =SUM(R10:S21) -> 1.5 | T24: =SUM(T10:U21) -> 11 | V24: =SUM(V10:W21) -> 2 | X24: =SUM(X10:Y21) -> 7.5 | Z24: =SUM(Z10,Z12,Z14,Z16,Z18) -> 1 | AB24: =SUM(AB10,AB12,AB14,AB16,AB18,AB20) -> 0 | AD24: =SUM(AD10:AE21) -> 0 | AF24: =SUM(AF10:AG21) -> 4

Sheet 13-17 Nov
A5: CHANTIER NUMERO | H5: HOPITAL LAVAL | J5: PERISCOPE | L5: CHAMONIX | N5: LE NOBLET | P5: MÉRICI | R5: MARLY | T5: TB4 | V5: HOTEL CLASSIQUE | X5: CHU | Z5: LEVIS | AF5: ADM | AH5: TOTAL
H7: 16-5307 | J7: 17-5430 | L7: 17-5437 | N7: 17-5440 | P7: 17-5463 | R7: 17-5490 | T7: 17-5496 | V7: 17-5501 | X7: 17-5506 | Z7: 17-5503
A10: LUNDI | C10: 2017-11-13 | J10: 1.5 | L10: 1 | P10: 0.5 | T10: 1 | V10: 3 | AF10: 1 | AH10: =SUM(D10:AG10) -> 8
A12: MARDI | C12: 2017-11-14 | P12: 1 | R12: 1 | V12: 3 | AF12: 3 | AH12: =SUM(D12:AG12) -> 8
A14: MERCREDI | C14: 2017-11-15 | J14: 1.5 | N14: 0.5 | V14: 2 | X14: 2 | AF14: 3.5 | AH14: =SUM(D14:AG14) -> 9.5
A16: JEUDI | C16: 2017-11-16 | J16: 1.5 | P16: 0.5 | V16: 3 | Z16: 1 | AF16: 2.5 | AH16: =SUM(D16:AG16) -> 8.5
A18: VENDREDI | C18: 2017-11-17 | J18: 1.5 | L18: 1 | R18: 1 | V18: 3 | Z18: 1.5 | AH18: =SUM(D18:AG18) -> 8
A20: SAMEDI
D22: =D5 -> 0 | F22: =F5 -> 0 | H22: =H5 -> HOPITAL LAVAL | J22: =J5 -> PERISCOPE | L22: =L5 -> CHAMONIX | N22: =N5 -> LE NOBLET | P22: =P5 -> MÉRICI | R22: =R5 -> MARLY | T22: =T5 -> TB4 | V22: =V5 -> HOTEL CLASSIQUE | X22: =X5 -> CHU | Z22: =Z5 -> LEVIS | AB22: =AB5 -> 0 | AD22: =AD5 -> 0 | AF22: =AF5 -> ADM | AH22: =SUM(AH10,AH12,AH14,AH16,AH18,AH20) -> 42
D23: =D7 -> 0 | F23: =F7 -> 0 | H23: =H7 -> 16-5307 | J23: =J7 -> 17-5430 | L23: =L7 -> 17-5437 | N23: =N7 -> 17-5440 | P23: =P7 -> 17-5463 | R23: =R7 -> 17-5490 | T23: =T7 -> 17-5496 | V23: =V7 -> 17-5501 | X23: =X7 -> 17-5506 | Z23: =Z7 -> 17-5503 | AB23: =AB7 -> 0 | AD23: =AD7 -> 0 | AF23: =AF7 -> 0
D24: =SUM(D10:E21) -> 0 | F24: =SUM(F10:G21) -> 0 | H24: =SUM(H10:I21) -> 0 | J24: =SUM(J10:K21) -> 6 | L24: =SUM(L10:M21) -> 2 | N24: =SUM(N10:O21) -> 0.5 | P24: =SUM(P10:Q21) -> 2 | R24: =SUM(R10:S21) -> 2 | T24: =SUM(T10:U21) -> 1 | V24: =SUM(V10:W21) -> 14 | X24: =SUM(X10:Y21) -> 2 | Z24: =SUM(Z10,Z12,Z14,Z16,Z18) -> 2.5 | AB24: =SUM(AB10,AB12,AB14,AB16,AB18,AB20) -> 0 | AD24: =SUM(AD10:AE21) -> 0 | AF24: =SUM(AF10:AG21) -> 10

Sheet 20-24 Nov
A5: CHANTIER | H5: HOPITAL LAVAL | J5: PERISCOPE | L5: CHAMONIX | N5: LE NOBLET | P5: MÉRICI | R5: MARLY | T5: TB4 | V5: HOTEL CLASSIQUE | X5: CHU | Z5: SAMUEL HOLLAND | AF5: ADM | AH5: TOTAL
A7: NUMÉRO | H7: 16-5307 | J7: 17-5430 | L7: 17-5437 | N7: 17-5440 | P7: 17-5463 | R7: 17-5490 | T7: 17-5496 | V7: 17-5501 | X7: 17-5506 | Z7: 17-5507
A10: LUNDI | C10: 2017-11-20 | J10: 1 | L10: 0.5 | P10: 0.5 | V10: 3 | X10: 2 | AF10: 1 | AH10: =SUM(D10:AG10) -> 8
A12: MARDI | C12: =C10+1 -> 2017-11-21 | L12: 1 | V12: 6 | AF12: 1 | AH12: =SUM(D12:AG12) -> 8
A14: MERCREDI | C14: =C12+1 -> 2017-11-22 | J14: 1 | V14: 4 | Z14: 1.5 | AF14: 3 | AH14: =SUM(D14:AG14) -> 9.5
A16: JEUDI | C16: =C14+1 -> 2017-11-23 | H16: 1 | R16: 1 | V16: 3.5 | X16: 1 | Z16: 1.5 | AH16: =SUM(D16:AG16) -> 8
A18: VENDREDI | C18: =C16+1 -> 2017-11-24 | J18: 1 | V18: 5 | Z18: 2 | AH18: =SUM(D18:AG18) -> 8
A20: SAMEDI | C20: =C18+1 -> 2017-11-25
D22: =D5 -> 0 | F22: =F5 -> 0 | H22: =H5 -> HOPITAL LAVAL | J22: =J5 -> PERISCOPE | L22: =L5 -> CHAMONIX | N22: =N5 -> LE NOBLET | P22: =P5 -> MÉRICI | R22: =R5 -> MARLY | T22: =T5 -> TB4 | V22: =V5 -> HOTEL CLASSIQUE | X22: =X5 -> CHU | Z22: =Z5 -> SAMUEL HOLLAND | AB22: =AB5 -> 0 | AD22: =AD5 -> 0 | AF22: =AF5 -> ADM | AH22: =SUM(AH10,AH12,AH14,AH16,AH18,AH20) -> 41.5
D23: =D7 -> 0 | F23: =F7 -> 0 | H23: =H7 -> 16-5307 | J23: =J7 -> 17-5430 | L23: =L7 -> 17-5437 | N23: =N7 -> 17-5440 | P23: =P7 -> 17-5463 | R23: =R7 -> 17-5490 | T23: =T7 -> 17-5496 | V23: =V7 -> 17-5501 | X23: =X7 -> 17-5506 | Z23: =Z7 -> 17-5507 | AB23: =AB7 -> 0 | AD23: =AD7 -> 0 | AF23: =AF7 -> 0
D24: =SUM(D10:E21) -> 0 | F24: =SUM(F10:G21) -> 0 | H24: =SUM(H10:I21) -> 1 | J24: =SUM(J10:K21) -> 3 | L24: =SUM(L10:M21) -> 1.5 | N24: =SUM(N10:O21) -> 0 | P24: =SUM(P10:Q21) -> 0.5 | R24: =SUM(R10:S21) -> 1 | T24: =SUM(T10:U21) -> 0 | V24: =SUM(V10:W21) -> 21.5 | X24: =SUM(X10:Y21) -> 3 | Z24: =SUM(Z10,Z12,Z14,Z16,Z18) -> 5 | AB24: =SUM(AB10,AB12,AB14,AB16,AB18,AB20) -> 0 | AD24: =SUM(AD10:AE21) -> 0 | AF24: =SUM(AF10:AG21) -> 5

Sheet 27-1 Déc
A5: CHANTIER | H5: HOPITAL LAVAL | J5: PERISCOPE | L5: CHAMONIX | N5: LE NOBLET | P5: MARLY | R5: TB4 | T5: HOTEL CLASSIQUE | V5: CHU | X5: CCBN | AF5: ADM | AH5: TOTAL
A7: NUMÉRO | H7: 16-5307 | J7: 17-5430 | L7: 17-5437 | N7: 17-5440 | P7: 17-5490 | R7: 17-5496 | T7: 17-5501 | V7: 17-5506 | X7: 17-5509
A10: LUNDI | C10: 2017-11-27 | J10: 1 | T10: 6 | X10: 1 | AH10: =SUM(D10:AF10) -> 8
A12: MARDI | C12: =C10+1 -> 2017-11-28 | J12: 2 | T12: 4 | AF12: 2 | AH12: =SUM(D12:AG12) -> 8
A14: MERCREDI | C14: =C12+1 -> 2017-11-29 | J14: 1 | L14: 1 | T14: 5 | X14: 1 | AF14: 0.5 | AH14: =SUM(D14:AG14) -> 8.5
A16: JEUDI | C16: =C14+1 -> 2017-11-30 | J16: 1.5 | T16: 5 | AF16: 2 | AH16: =SUM(D16:AG16) -> 8.5
A18: VENDREDI | C18: =C16+1 -> 2017-12-01 | J18: 1 | T18: 6 | X18: 1 | AH18: =SUM(D18:AG18) -> 8
A20: SAMEDI | C20: =C18+1 -> 2017-12-02
D22: =D5 -> 0 | F22: =F5 -> 0 | H22: =H5 -> HOPITAL LAVAL | J22: =J5 -> PERISCOPE | L22: =L5 -> CHAMONIX | N22: =N5 -> LE NOBLET | P22: =P5 -> MARLY | R22: =R5 -> TB4 | T22: =T5 -> HOTEL CLASSIQUE | V22: =V5 -> CHU | X22: =X5 -> CCBN | Z22: =Z5 -> 0 | AB22: =AB5 -> 0 | AD22: =AD5 -> 0 | AF22: =AF5 -> ADM | AH22: =SUM(AH10,AH12,AH14,AH16,AH18,AH20) -> 41
D23: =D7 -> 0 | F23: =F7 -> 0 | H23: =H7 -> 16-5307 | J23: =J7 -> 17-5430 | L23: =L7 -> 17-5437 | N23: =N7 -> 17-5440 | P23: =P7 -> 17-5490 | R23: =R7 -> 17-5496 | T23: =T7 -> 17-5501 | V23: =V7 -> 17-5506 | X23: =X7 -> 17-5509 | Z23: =Z7 -> 0 | AB23: =AB7 -> 0 | AD23: =AD7 -> 0 | AF23: =AF7 -> 0
D24: =SUM(D10:E21) -> 0 | F24: =SUM(F10:G21) -> 0 | H24: =SUM(H10:I21) -> 0 | J24: =SUM(J10:K21) -> 6.5 | L24: =SUM(L10:M21) -> 1 | N24: =SUM(N10:O21) -> 0 | P24: =SUM(P10:Q21) -> 0 | R24: =SUM(R10:S21) -> 0 | T24: =SUM(T10:U21) -> 26 | V24: =SUM(V10:W21) -> 0 | X24: =SUM(X10:Y21) -> 3 | Z24: =SUM(Z10,Z12,Z14,Z16,Z18) -> 0 | AB24: =SUM(AB10,AB12,AB14,AB16,AB18,AB20) -> 0 | AD24: =SUM(AD10:AE21) -> 0 | AF24: =SUM(AF10:AG21) -> 4.5

Sheet 4-8 Déc
A5: CHANTIER | H5: HOPITAL LAVAL | J5: PERISCOPE | L5: LE NOBLET | N5: MARLY | P5: HOTEL CLASSIQUE | R5: CHU | T5: CCBN | AF5: ADM | AH5: TOTAL
A7: NUMÉRO | H7: 16-5307 | J7: 17-5430 | L7: 17-5440 | N7: 17-5490 | P7: 17-5501 | R7: 17-5506 | T7: 17-5509
A10: LUNDI | C10: 2017-12-04 | P10: 9 | AH10: =SUM(D10:AF10) -> 9
A12: MARDI | C12: =C10+1 -> 2017-12-05 | H12: 1 | J12: 1 | N12: 0.5 | P12: 5 | T12: 0.5 | AH12: =SUM(D12:AG12) -> 8
A14: MERCREDI | C14: =C12+1 -> 2017-12-06 | P14: 6.5 | AF14: 2 | AH14: =SUM(D14:AG14) -> 8.5
A16: JEUDI | C16: =C14+1 -> 2017-12-07 | P16: 6.5 | T16: 1 | AF16: 0.5 | AH16: =SUM(D16:AG16) -> 8
A18: VENDREDI | C18: =C16+1 -> 2017-12-08 | J18: 1.5 | P18: 5.5 | T18: 1 | AH18: =SUM(D18:AG18) -> 8
A20: SAMEDI | C20: =C18+1 -> 2017-12-09
D22: =D5 -> 0 | F22: =F5 -> 0 | H22: =H5 -> HOPITAL LAVAL | J22: =J5 -> PERISCOPE | L22: =L5 -> LE NOBLET | N22: =N5 -> MARLY | P22: =P5 -> HOTEL CLASSIQUE | R22: =R5 -> CHU | T22: =T5 -> CCBN | V22: =V5 -> 0 | X22: =X5 -> 0 | Z22: =Z5 -> 0 | AB22: =AB5 -> 0 | AD22: =AD5 -> 0 | AF22: =AF5 -> ADM | AH22: =SUM(AH10,AH12,AH14,AH16,AH18,AH20) -> 41.5
D23: =D7 -> 0 | F23: =F7 -> 0 | H23: =H7 -> 16-5307 | J23: =J7 -> 17-5430 | L23: =L7 -> 17-5440 | N23: =N7 -> 17-5490 | P23: =P7 -> 17-5501 | R23: =R7 -> 17-5506 | T23: =T7 -> 17-5509 | V23: =V7 -> 0 | X23: =X7 -> 0 | Z23: =Z7 -> 0 | AB23: =AB7 -> 0 | AD23: =AD7 -> 0 | AF23: =AF7 -> 0
D24: =SUM(D10:E21) -> 0 | F24: =SUM(F10:G21) -> 0 | H24: =SUM(H10:I21) -> 1 | J24: =SUM(J10:K21) -> 2.5 | L24: =SUM(L10:M21) -> 0 | N24: =SUM(N10:O21) -> 0.5 | P24: =SUM(P10:Q21) -> 32.5 | R24: =SUM(R10:S21) -> 0 | T24: =SUM(T10:U21) -> 2.5 | V24: =SUM(V10:W21) -> 0 | X24: =SUM(X10:Y21) -> 0 | Z24: =SUM(Z10,Z12,Z14,Z16,Z18) -> 0 | AB24: =SUM(AB10,AB12,AB14,AB16,AB18,AB20) -> 0 | AD24: =SUM(AD10:AE21) -> 0 | AF24: =SUM(AF10:AG21) -> 2.5

Sheet 11-15 Déc
A5: CHANTIER | H5: HOPITAL LAVAL | J5: PERISCOPE | L5: LE NOBLET | N5: MARLY | P5: HOTEL CLASSIQUE | R5: CHU | T5: CCBN | AF5: ADM | AH5: TOTAL
A7: NUMÉRO | H7: 16-5307 | J7: 17-5430 | L7: 17-5440 | N7: 17-5490 | P7: 17-5501 | R7: 17-5506 | T7: 17-5509
A10: LUNDI | C10: 2017-12-11 | AH10: =SUM(D10:AF10) -> 0
A12: MARDI | C12: =C10+1 -> 2017-12-12 | AH12: =SUM(D12:AG12) -> 0
A14: MERCREDI | C14: =C12+1 -> 2017-12-13 | AH14: =SUM(D14:AG14) -> 0
A16: JEUDI | C16: =C14+1 -> 2017-12-14 | AH16: =SUM(D16:AG16) -> 0
A18: VENDREDI | C18: =C16+1 -> 2017-12-15 | AH18: =SUM(D18:AG18) -> 0
A20: SAMEDI | C20: =C18+1 -> 2017-12-16
D22: =D5 -> 0 | F22: =F5 -> 0 | H22: =H5 -> HOPITAL LAVAL | J22: =J5 -> PERISCOPE | L22: =L5 -> LE NOBLET | N22: =N5 -> MARLY | P22: =P5 -> HOTEL CLASSIQUE | R22: =R5 -> CHU | T22: =T5 -> CCBN | V22: =V5 -> 0 | X22: =X5 -> 0 | Z22: =Z5 -> 0 | AB22: =AB5 -> 0 | AD22: =AD5 -> 0 | AF22: =AF5 -> ADM | AH22: =SUM(AH10,AH12,AH14,AH16,AH18,AH20) -> 0
D23: =D7 -> 0 | F23: =F7 -> 0 | H23: =H7 -> 16-5307 | J23: =J7 -> 17-5430 | L23: =L7 -> 17-5440 | N23: =N7 -> 17-5490 | P23: =P7 -> 17-5501 | R23: =R7 -> 17-5506 | T23: =T7 -> 17-5509 | V23: =V7 -> 0 | X23: =X7 -> 0 | Z23: =Z7 -> 0 | AB23: =AB7 -> 0 | AD23: =AD7 -> 0 | AF23: =AF7 -> 0
D24: =SUM(D10:E21) -> 0 | F24: =SUM(F10:G21) -> 0 | H24: =SUM(H10:I21) -> 0 | J24: =SUM(J10:K21) -> 0 | L24: =SUM(L10:M21) -> 0 | N24: =SUM(N10:O21) -> 0 | P24: =SUM(P10:Q21) -> 0 | R24: =SUM(R10:S21) -> 0 | T24: =SUM(T10:U21) -> 0 | V24: =SUM(V10:W21) -> 0 | X24: =SUM(X10:Y21) -> 0 | Z24: =SUM(Z10,Z12,Z14,Z16,Z18) -> 0 | AB24: =SUM(AB10,AB12,AB14,AB16,AB18,AB20) -> 0 | AD24: =SUM(AD10:AE21) -> 0 | AF24: =SUM(AF10:AG21) -> 0

Sheet 18-22 Déc
A5: CHANTIER | H5: HOPITAL LAVAL | J5: PERISCOPE | L5: LE NOBLET | N5: MARLY | P5: HOTEL CLASSIQUE | R5: CHU | T5: CCBN | AF5: ADM | AH5: TOTAL
A7: NUMÉRO | H7: 16-5307 | J7: 17-5430 | L7: 17-5440 | N7: 17-5490 | P7: 17-5501 | R7: 17-5506 | T7: 17-5509
A10: LUNDI | C10: 2017-12-18 | AH10: =SUM(D10:AF10) -> 0
A12: MARDI | C12: =C10+1 -> 2017-12-19 | AH12: =SUM(D12:AG12) -> 0
A14: MERCREDI | C14: =C12+1 -> 2017-12-20 | AH14: =SUM(D14:AG14) -> 0
A16: JEUDI | C16: =C14+1 -> 2017-12-21 | AH16: =SUM(D16:AG16) -> 0
A18: VENDREDI | C18: =C16+1 -> 2017-12-22 | AH18: =SUM(D18:AG18) -> 0
A20: SAMEDI | C20: =C18+1 -> 2017-12-23
D22: =D5 -> 0 | F22: =F5 -> 0 | H22: =H5 -> HOPITAL LAVAL | J22: =J5 -> PERISCOPE | L22: =L5 -> LE NOBLET | N22: =N5 -> MARLY | P22: =P5 -> HOTEL CLASSIQUE | R22: =R5 -> CHU | T22: =T5 -> CCBN | V22: =V5 -> 0 | X22: =X5 -> 0 | Z22: =Z5 -> 0 | AB22: =AB5 -> 0 | AD22: =AD5 -> 0 | AF22: =AF5 -> ADM | AH22: =SUM(AH10,AH12,AH14,AH16,AH18,AH20) -> 0
D23: =D7 -> 0 | F23: =F7 -> 0 | H23: =H7 -> 16-5307 | J23: =J7 -> 17-5430 | L23: =L7 -> 17-5440 | N23: =N7 -> 17-5490 | P23: =P7 -> 17-5501 | R23: =R7 -> 17-5506 | T23: =T7 -> 17-5509 | V23: =V7 -> 0 | X23: =X7 -> 0 | Z23: =Z7 -> 0 | AB23: =AB7 -> 0 | AD23: =AD7 -> 0 | AF23: =AF7 -> 0
D24: =SUM(D10:E21) -> 0 | F24: =SUM(F10:G21) -> 0 | H24: =SUM(H10:I21) -> 0 | J24: =SUM(J10:K21) -> 0 | L24: =SUM(L10:M21) -> 0 | N24: =SUM(N10:O21) -> 0 | P24: =SUM(P10:Q21) -> 0 | R24: =SUM(R10:S21) -> 0 | T24: =SUM(T10:U21) -> 0 | V24: =SUM(V10:W21) -> 0 | X24: =SUM(X10:Y21) -> 0 | Z24: =SUM(Z10,Z12,Z14,Z16,Z18) -> 0 | AB24: =SUM(AB10,AB12,AB14,AB16,AB18,AB20) -> 0 | AD24: =SUM(AD10:AE21) -> 0 | AF24: =SUM(AF10:AG21) -> 0
